Workbook

Sheet Instructions - Start Here
B1: Instructions
B3: Step 1 - Use the "Is 131 the Best Option?" tab to determine whether a 131 is best for you.
B4: Goal: Determine whether a program should be a 131 program. 131 programs result in net new enrollment and revenue growth to campus. They must be self-supporting instructional programs that have not been budgeted through UW-Extension and are outside the tuition pool, and they must not compete with, or draw student away from, existing programs. Examples of these non-pooled programs include professional master’s and capstone certificate programs. How to use: Fill out the Yes/No column with the appropriate answer to each question. The result will appear in the Result box below. Read the information to the right. If your result is a 131 program, continue filling out the subsequent tabs of the workbook. If not, a 101 program is likely preferred, so the workbook is no longer relevant.
B5: Step 2 - If yes, fill out green boxes on all subsequent tabs.
B6: 131 Program Summary
B7: This tab aggregates the detailed information on subsequent tabs into a summary of total costs per year. How to use: Fill out the green boxes to specify the general details about the program, such as its name, department, year of implementation, duration, and price.
B8: Submodels
B9: Credits
B10: This tab allows users to input the number of credits taken per year (full-time and part-time), as well as the enrollment per year (both residents and nonresidents and for full-time and part-time students). How to use: After inputting the number of years in the Program Duration cells of "131 Program Summary" tab, the cells where data needs to be entered (number of credits per year, and the first-year enrollment for each year) will turn green. This will then act as the input for the continuing student enrollment going forward, as well as the total credits and tuition calculations on the "131 Program Summary" tab.
B11: Curriculum
B12: This tab breaks down the costs of developing and maintaining course content. The standard cost for course development is $30,000, $15,000 for a transition, and course maintenance is frequently 15% of the development cost, although variance is possible. How to use: Fill in the development cost for each course for each year. The course maintenance column will automatically populate to be 15% of the development cost, although it can be manually altered.
B13: Salaries & Wages
B14: This tab breaks down the compensation for each person working for the program and allows people to be classified as either Instructional, Program Support, Program Marketing, Program Development - Startup (DCS / Campus), or Program Development – Startup. How to use: Fill in each green column for each person. The base salary should be entered in the Salary/Wage column and the appropriate pay basis, months, and effort should be inputted to allow the actual requested salary to appear in the Requested Salary column. Input an amount for the "Compensation Escalator" to drive the increase in salary over time. Then enter the fringe rate in the specified column, which will calculate the fringe benefit expense and total cost. Make sure to click on the + sign to expand each year and fill in information for every year the individual will be involved in the program.
B15: Tuition Remission
B16: This tab calculates costs of tuition remission for Project Assistant and Research Assistant students involved in the program each year. How to use: Fill in each green box with the number of PA/RAs the program will require for each year and semester.
B17: Sub-Agreements
B18: This tab calculates the cost of sub-agreements with other schools, categorizes the expense as either instructional or support, and identifies the payment type as either fixed rate or per credit. How to use: Fill in the name of the entity the sub-agreement is with, the type, the payment type, and the amount (ex: $ per credit, or the total fixed amount). The following two columns will calculate based on the payment type and amount.
B19: Supplies & Services
B20: This tab allows users to list and describe all purchases, and identify them as instructional, support, or program development. How to use: Fill out the category (travel, meetings, conferences, supplies, other), describe the cost, choose the type, and list the amount for each year.
B21: Investing the Margin
B22: This tab allows users to describe in detail how the residual money will be spent, categorized by department salaries, new faculty lines, additional TA positions or scholarships, professional development, and other. How to use: Fill in the category type, describe the cost, and list the amount for each year.

Sheet Is 131 the Best Option
B1: Is 131 the Best Option?
B2: Characteristic | D2: Yes/No
B3: 1 | C3: Is the program designed for non-traditional students through modality, curriculum, and attentiveness to workforce demand? | D3: yes
B4: 2 | C4: Does the program have substantial opportunity for scale (e.g. more than 750 incremental annual credits)? | D4: yes | E4: Yes
B5: 3 | C5: Does the program have substantial opportunity for differentiated market tuition (e.g. above the standard grad rate in your school /college)? | D5: No | E5: No
B6: =CONCATENATE(3,".") -> 3. | C6: Does the cost of instruction and support of the program leave room for substantial investment margin?
B7: =CONCATENATE(4,".") -> 4. | C7: Does the program require new offerings (courses)?
B8: =CONCATENATE(5,".") -> 5. | C8: Is there sufficient demand to cover those courses (e.g. larger than x students)? | G8: if say no to 2 but have really large program, still could be 131
C11: Result
C12: =IF(AND(ISBLANK(D3),ISBLANK(D5),ISBLANK(D4)),"",IF(D3="No","A 101 (Pooled) Program Is Best For You",IF(OR(D4="Yes",D5="Yes"),"A 131 Program Might Be Right For You","A 101 (Pooled) Program Is Best For You"))) -> A 131 Program Might Be Right For You

Sheet 131 Program Summary
A1: 1 | B1: Program name | E1: Program department
A2: =A1+1 -> 2
A3: =A2+1 -> 3 | B3: Investment start (Academic Year) | C3: 2020 | E3: Program duration (years - Full Time) | F3: 1
A4: 4 | B4: Enrollment start (Academic Year) | C4: 2021 | E4: Program duration (years - Part Time) | F4: 2
A5: 5
A6: 6 | B6: Resident price per credit | C6: 1200 | E6: School / college share approach | F6: Net Revenue
A7: 7 | B7: Non-resident price per credit | C7: 1200 | E7: =CONCATENATE(E22," ","Instructional cost per credit") -> 2022 Instructional cost per credit | F7: =E36/(SUM(E23:E26)) -> 
A8: 8 | E8: =CONCATENATE(E22," ","Support cost per credit") -> 2022 Support cost per credit | F8: =E38/(SUM(E23:E26)) -> 
A9: 9 | B9: Dept scholarship | C9: 0.05
A10: 10 | B10: Waiver percentage | C10: 0.05 | E10: Campus share | F10: 0.1
A11: 11 | B11: Marketing per new student | C11: 3000 | E11: School / college share | F11: 0.23
A12: 12
A13: 13
A14: 14
A15: 15
A16: 16
A17: 17
A18: 18
A19: 19
A20: 20
A21: 21
A22: 22 | B22: Fiscal year | C22: =C3 -> 2020 | D22: =C22+1 -> 2021 | E22: =D22+1 -> 2022 | F22: 2023 | G22: 2024 | H22: 2025 | I22: 2026 | J22: 2027 | K22: 2028 | L22: 2029
A23: 23 | B23: Resident Credits (FT) | C23: =Credits!D14*Credits!$D$4+Credits!D16*Credits!$D$5+Credits!D18*Credits!$D$6+Credits!D20*Credits!$D$7+Credits!D22*Credits!$D$8+Credits!D24*Credits!$D$9 -> 0 | D23: =Credits!E14*Credits!$D$4+Credits!E16*Credits!$D$5+Credits!E18*Credits!$D$6+Credits!E20*Credits!$D$7+Credits!E22*Credits!$D$8+Credits!E24*Credits!$D$9 -> 0 | E23: =Credits!F14*Credits!$D$4+Credits!F16*Credits!$D$5+Credits!F18*Credits!$D$6+Credits!F20*Credits!$D$7+Credits!F22*Credits!$D$8+Credits!F24*Credits!$D$9 -> 0 | F23: =Credits!G14*Credits!$D$4+Credits!G16*Credits!$D$5+Credits!G18*Credits!$D$6+Credits!G20*Credits!$D$7+Credits!G22*Credits!$D$8+Credits!G24*Credits!$D$9 -> 0 | G23: =Credits!H14*Credits!$D$4+Credits!H16*Credits!$D$5+Credits!H18*Credits!$D$6+Credits!H20*Credits!$D$7+Credits!H22*Credits!$D$8+Credits!H24*Credits!$D$9 -> 0 | H23: =Credits!I14*Credits!$D$4+Credits!I16*Credits!$D$5+Credits!I18*Credits!$D$6+Credits!I20*Credits!$D$7+Credits!I22*Credits!$D$8+Credits!I24*Credits!$D$9 -> 0 | I23: =Credits!J14*Credits!$D$4+Credits!J16*Credits!$D$5+Credits!J18*Credits!$D$6+Credits!J20*Credits!$D$7+Credits!J22*Credits!$D$8+Credits!J24*Credits!$D$9 -> 0 | J23: =Credits!K14*Credits!$D$4+Credits!K16*Credits!$D$5+Credits!K18*Credits!$D$6+Credits!K20*Credits!$D$7+Credits!K22*Credits!$D$8+Credits!K24*Credits!$D$9 -> 0 | K23: =Credits!L14*Credits!$D$4+Credits!L16*Credits!$D$5+Credits!L18*Credits!$D$6+Credits!L20*Credits!$D$7+Credits!L22*Credits!$D$8+Credits!L24*Credits!$D$9 -> 0 | L23: =Credits!M14*Credits!$D$4+Credits!M16*Credits!$D$5+Credits!M18*Credits!$D$6+Credits!M20*Credits!$D$7+Credits!M22*Credits!$D$8+Credits!M24*Credits!$D$9 -> 0
A24: 24 | B24: Nonresident Credits (FT) | C24: =Credits!D15*Credits!$D$4+Credits!D17*Credits!$D$5+Credits!D19*Credits!$D$6+Credits!D21*Credits!$D$7+Credits!D23*Credits!$D$8+Credits!D25*Credits!$D$9 -> 0 | D24: =Credits!E15*Credits!$D$4+Credits!E17*Credits!$D$5+Credits!E19*Credits!$D$6+Credits!E21*Credits!$D$7+Credits!E23*Credits!$D$8+Credits!E25*Credits!$D$9 -> 0 | E24: =Credits!F15*Credits!$D$4+Credits!F17*Credits!$D$5+Credits!F19*Credits!$D$6+Credits!F21*Credits!$D$7+Credits!F23*Credits!$D$8+Credits!F25*Credits!$D$9 -> 0 | F24: =Credits!G15*Credits!$D$4+Credits!G17*Credits!$D$5+Credits!G19*Credits!$D$6+Credits!G21*Credits!$D$7+Credits!G23*Credits!$D$8+Credits!G25*Credits!$D$9 -> 0 | G24: =Credits!H15*Credits!$D$4+Credits!H17*Credits!$D$5+Credits!H19*Credits!$D$6+Credits!H21*Credits!$D$7+Credits!H23*Credits!$D$8+Credits!H25*Credits!$D$9 -> 0 | H24: =Credits!I15*Credits!$D$4+Credits!I17*Credits!$D$5+Credits!I19*Credits!$D$6+Credits!I21*Credits!$D$7+Credits!I23*Credits!$D$8+Credits!I25*Credits!$D$9 -> 0 | I24: =Credits!J15*Credits!$D$4+Credits!J17*Credits!$D$5+Credits!J19*Credits!$D$6+Credits!J21*Credits!$D$7+Credits!J23*Credits!$D$8+Credits!J25*Credits!$D$9 -> 0 | J24: =Credits!K15*Credits!$D$4+Credits!K17*Credits!$D$5+Credits!K19*Credits!$D$6+Credits!K21*Credits!$D$7+Credits!K23*Credits!$D$8+Credits!K25*Credits!$D$9 -> 0 | K24: =Credits!L15*Credits!$D$4+Credits!L17*Credits!$D$5+Credits!L19*Credits!$D$6+Credits!L21*Credits!$D$7+Credits!L23*Credits!$D$8+Credits!L25*Credits!$D$9 -> 0 | L24: =Credits!M15*Credits!$D$4+Credits!M17*Credits!$D$5+Credits!M19*Credits!$D$6+Credits!M21*Credits!$D$7+Credits!M23*Credits!$D$8+Credits!M25*Credits!$D$9 -> 0
A25: 25 | B25: Resident Credits (PT) | C25: =Credits!P14*Credits!$E$4+Credits!P16*Credits!$E$5+Credits!P18*Credits!$E$6+Credits!P20*Credits!$E$7+Credits!P22*Credits!$E$8+Credits!P24*Credits!$E$9 -> 0 | D25: =Credits!Q14*Credits!$E$4+Credits!Q16*Credits!$E$5+Credits!Q18*Credits!$E$6+Credits!Q20*Credits!$E$7+Credits!Q22*Credits!$E$8+Credits!Q24*Credits!$E$9 -> 0 | E25: =Credits!R14*Credits!$E$4+Credits!R16*Credits!$E$5+Credits!R18*Credits!$E$6+Credits!R20*Credits!$E$7+Credits!R22*Credits!$E$8+Credits!R24*Credits!$E$9 -> 0 | F25: =Credits!S14*Credits!$E$4+Credits!S16*Credits!$E$5+Credits!S18*Credits!$E$6+Credits!S20*Credits!$E$7+Credits!S22*Credits!$E$8+Credits!S24*Credits!$E$9 -> 0 | G25: =Credits!T14*Credits!$E$4+Credits!T16*Credits!$E$5+Credits!T18*Credits!$E$6+Credits!T20*Credits!$E$7+Credits!T22*Credits!$E$8+Credits!T24*Credits!$E$9 -> 0 | H25: =Credits!U14*Credits!$E$4+Credits!U16*Credits!$E$5+Credits!U18*Credits!$E$6+Credits!U20*Credits!$E$7+Credits!U22*Credits!$E$8+Credits!U24*Credits!$E$9 -> 0 | I25: =Credits!V14*Credits!$E$4+Credits!V16*Credits!$E$5+Credits!V18*Credits!$E$6+Credits!V20*Credits!$E$7+Credits!V22*Credits!$E$8+Credits!V24*Credits!$E$9 -> 0 | J25: =Credits!W14*Credits!$E$4+Credits!W16*Credits!$E$5+Credits!W18*Credits!$E$6+Credits!W20*Credits!$E$7+Credits!W22*Credits!$E$8+Credits!W24*Credits!$E$9 -> 0 | K25: =Credits!X14*Credits!$E$4+Credits!X16*Credits!$E$5+Credits!X18*Credits!$E$6+Credits!X20*Credits!$E$7+Credits!X22*Credits!$E$8+Credits!X24*Credits!$E$9 -> 0 | L25: =Credits!Y14*Credits!$E$4+Credits!Y16*Credits!$E$5+Credits!Y18*Credits!$E$6+Credits!Y20*Credits!$E$7+Credits!Y22*Credits!$E$8+Credits!Y24*Credits!$E$9 -> 0
A26: 26 | B26: Nonresident Credits (PT) | C26: =Credits!P15*Credits!$E$4+Credits!P17*Credits!$E$5+Credits!P19*Credits!$E$6+Credits!P21*Credits!$E$7+Credits!P23*Credits!$E$8+Credits!P25*Credits!$E$9 -> 0 | D26: =Credits!Q15*Credits!$E$4+Credits!Q17*Credits!$E$5+Credits!Q19*Credits!$E$6+Credits!Q21*Credits!$E$7+Credits!Q23*Credits!$E$8+Credits!Q25*Credits!$E$9 -> 0 | E26: =Credits!R15*Credits!$E$4+Credits!R17*Credits!$E$5+Credits!R19*Credits!$E$6+Credits!R21*Credits!$E$7+Credits!R23*Credits!$E$8+Credits!R25*Credits!$E$9 -> 0 | F26: =Credits!S15*Credits!$E$4+Credits!S17*Credits!$E$5+Credits!S19*Credits!$E$6+Credits!S21*Credits!$E$7+Credits!S23*Credits!$E$8+Credits!S25*Credits!$E$9 -> 0 | G26: =Credits!T15*Credits!$E$4+Credits!T17*Credits!$E$5+Credits!T19*Credits!$E$6+Credits!T21*Credits!$E$7+Credits!T23*Credits!$E$8+Credits!T25*Credits!$E$9 -> 0 | H26: =Credits!U15*Credits!$E$4+Credits!U17*Credits!$E$5+Credits!U19*Credits!$E$6+Credits!U21*Credits!$E$7+Credits!U23*Credits!$E$8+Credits!U25*Credits!$E$9 -> 0 | I26: =Credits!V15*Credits!$E$4+Credits!V17*Credits!$E$5+Credits!V19*Credits!$E$6+Credits!V21*Credits!$E$7+Credits!V23*Credits!$E$8+Credits!V25*Credits!$E$9 -> 0 | J26: =Credits!W15*Credits!$E$4+Credits!W17*Credits!$E$5+Credits!W19*Credits!$E$6+Credits!W21*Credits!$E$7+Credits!W23*Credits!$E$8+Credits!W25*Credits!$E$9 -> 0 | K26: =Credits!X15*Credits!$E$4+Credits!X17*Credits!$E$5+Credits!X19*Credits!$E$6+Credits!X21*Credits!$E$7+Credits!X23*Credits!$E$8+Credits!X25*Credits!$E$9 -> 0 | L26: =Credits!Y15*Credits!$E$4+Credits!Y17*Credits!$E$5+Credits!Y19*Credits!$E$6+Credits!Y21*Credits!$E$7+Credits!Y23*Credits!$E$8+Credits!Y25*Credits!$E$9 -> 0
A27: 27 | B27: Total Credits | C27: =SUM(C23:C26) -> 0 | D27: =SUM(D23:D26) -> 0 | E27: 0 | F27: 0 | G27: 0 | H27: 0 | I27: 0 | J27: 0 | K27: 0 | L27: 0
A28: 28 | B28: Tuition Revenue | C28: =(C23+C25)*$C$6+(C24+C26)*$C$7 -> 0 | D28: 0 | E28: 0 | F28: 0 | G28: 0 | H28: 0 | I28: 0 | J28: 0 | K28: 0 | L28: 0
A29: 29 | B29: Tuition Discount | C29: =C28*$C$9 -> 0 | D29: =D28*$C$9 -> 0 | E29: =E28*$C$9 -> 0 | F29: 0 | G29: 0 | H29: 0 | I29: 0 | J29: 0 | K29: 0 | L29: =L28*$C$9 -> 0
A30: 30 | B30: Tuition Waivers | C30: =C28*$C$10 -> 0 | D30: =D28*$C$10 -> 0 | E30: =E28*$C$10 -> 0 | F30: =F28*$C$10 -> 0 | G30: =G28*$C$10 -> 0 | H30: 0 | I30: 0 | J30: 0 | K30: 0 | L30: =L28*$C$10 -> 0
A31: 31 | B31: Net Tuition | C31: =C28-C29-C30 -> 0 | D31: =D28-D29-D30 -> 0 | E31: 0 | F31: 0 | G31: 0 | H31: 0 | I31: 0 | J31: 0 | K31: 0 | L31: 0
A32: 32 | B32: Training Grant (revenue) | M32: Enter per year training grant
A33: 33 | B33: Total Revenue | C33: =C31+C32 -> 0 | D33: =D31+D32 -> 0 | E33: 0 | F33: 0 | G33: 0 | H33: 0 | I33: 0 | J33: 0 | K33: 0 | L33: 0
A34: 34 | B34: Campus Share | C34: =(C31)*$F$10 -> 0 | D34: =(D31)*$F$10 -> 0 | E34: 0 | F34: 0 | G34: 0 | H34: 0 | I34: 0 | J34: 0 | K34: 0 | L34: 0
A35: 35 | B35: School / College Share | C35: =IF($F$6="Net Revenue",(C31)*$F$11,((C31+C32-C34-C36-C37-C38-C47)*$F$11)) -> 0 | D35: =IF($F$6="Net Revenue",(D31)*$F$11,((D31+D32-D34-D36-D37-D38-D47)*$F$11)) -> 0 | E35: 0 | F35: 0 | G35: 0 | H35: 0 | I35: 0 | J35: 0 | K35: 0 | L35: 0
A36: 36 | B36: Instructional Cost | C36: ='Salaries & Wages'!R39+'Sub-Agreements'!G29+'Supplies & Services'!D29+'Tuition Remission'!B9 -> 0 | D36: ='Salaries & Wages'!S39+'Sub-Agreements'!H29+'Supplies & Services'!E29+'Tuition Remission'!C9 -> 0 | E36: ='Salaries & Wages'!T39+'Sub-Agreements'!I29+'Supplies & Services'!F29+'Tuition Remission'!D9 -> 0 | F36: ='Salaries & Wages'!U39+'Sub-Agreements'!J29+'Supplies & Services'!G29+'Tuition Remission'!E9 -> 0 | G36: ='Salaries & Wages'!V39+'Sub-Agreements'!K29+'Supplies & Services'!H29+'Tuition Remission'!F9 -> 0 | H36: ='Salaries & Wages'!W39+'Sub-Agreements'!L29+'Supplies & Services'!I29+'Tuition Remission'!G9 -> 0 | I36: ='Salaries & Wages'!X39+'Sub-Agreements'!M29+'Supplies & Services'!J29+'Tuition Remission'!H9 -> 0 | J36: ='Salaries & Wages'!Y39+'Sub-Agreements'!N29+'Supplies & Services'!K29+'Tuition Remission'!I9 -> 0 | K36: ='Salaries & Wages'!Z39+'Sub-Agreements'!O29+'Supplies & Services'!L29+'Tuition Remission'!J9 -> 0 | L36: ='Salaries & Wages'!AA39+'Sub-Agreements'!P29+'Supplies & Services'!M29+'Tuition Remission'!K9 -> 0
A37: 37 | B37: Training Grant cost | M37: Enter costs associated with training grant
A38: 38 | B38: Support Cost | C38: ='Salaries & Wages'!R40+'Sub-Agreements'!G30+'Supplies & Services'!D30 -> 0 | D38: ='Salaries & Wages'!S40+'Sub-Agreements'!H30+'Supplies & Services'!E30 -> 0 | E38: ='Salaries & Wages'!T40+'Sub-Agreements'!I30+'Supplies & Services'!F30 -> 0 | F38: ='Salaries & Wages'!U40+'Sub-Agreements'!J30+'Supplies & Services'!G30 -> 0 | G38: ='Salaries & Wages'!V40+'Sub-Agreements'!K30+'Supplies & Services'!H30 -> 0 | H38: ='Salaries & Wages'!W40+'Sub-Agreements'!L30+'Supplies & Services'!I30 -> 0 | I38: ='Salaries & Wages'!X40+'Sub-Agreements'!M30+'Supplies & Services'!J30 -> 0 | J38: ='Salaries & Wages'!Y40+'Sub-Agreements'!N30+'Supplies & Services'!K30 -> 0 | K38: ='Salaries & Wages'!Z40+'Sub-Agreements'!O30+'Supplies & Services'!L30 -> 0 | L38: ='Salaries & Wages'!AA40+'Sub-Agreements'!P30+'Supplies & Services'!M30 -> 0
A39: 39 | B39: Operating Margin - Department | C39: =C33-C34-C35-C36-C38-C37 -> 0 | D39: =D33-D34-D35-D36-D38-D37 -> 0 | E39: 0 | F39: 0 | G39: 0 | H39: 0 | I39: 0 | J39: 0 | K39: 0 | L39: 0
A40: 40 | B40: Incremental Margin | D40: =D39-C39 -> 0 | E40: =E39-D39 -> 0 | F40: =F39-E39 -> 0 | G40: 0 | H40: =H39-G39 -> 0 | I40: 0 | J40: 0 | K40: 0 | L40: 0
A41: 41
A42: 42 | B42: Program Investments
A43: 43 | B43: Program Development | C43: ='Supplies & Services'!D31+'Salaries & Wages'!R43 -> 0 | D43: ='Supplies & Services'!E31+'Salaries & Wages'!S43 -> 0 | E43: ='Supplies & Services'!F31+'Salaries & Wages'!T43 -> 0 | F43: ='Supplies & Services'!G31+'Salaries & Wages'!U43 -> 0 | G43: ='Supplies & Services'!H31+'Salaries & Wages'!V43 -> 0 | H43: ='Supplies & Services'!I31+'Salaries & Wages'!W43 -> 0 | I43: ='Supplies & Services'!J31+'Salaries & Wages'!X43 -> 0 | J43: ='Supplies & Services'!K31+'Salaries & Wages'!Y43 -> 0 | K43: ='Supplies & Services'!L31+'Salaries & Wages'!Z43 -> 0 | L43: ='Supplies & Services'!M31+'Salaries & Wages'!AA43 -> 0
A44: 44 | B44: Program Development - DCS / Campus | C44: ='Supplies & Services'!D32+'Salaries & Wages'!R42 -> 0 | D44: ='Supplies & Services'!E32+'Salaries & Wages'!S42 -> 0 | E44: ='Supplies & Services'!F32+'Salaries & Wages'!T42 -> 0 | F44: ='Supplies & Services'!G32+'Salaries & Wages'!U42 -> 0 | G44: ='Supplies & Services'!H32+'Salaries & Wages'!V42 -> 0 | H44: ='Supplies & Services'!I32+'Salaries & Wages'!W42 -> 0 | I44: ='Supplies & Services'!J32+'Salaries & Wages'!X42 -> 0 | J44: ='Supplies & Services'!K32+'Salaries & Wages'!Y42 -> 0 | K44: ='Supplies & Services'!L32+'Salaries & Wages'!Z42 -> 0 | L44: ='Supplies & Services'!M32+'Salaries & Wages'!AA42 -> 0
A45: 45 | B45: Course Development | C45: ='Curriculum Development'!E24 -> 15000 | D45: ='Curriculum Development'!F24 -> 4500 | E45: ='Curriculum Development'!G24 -> 4500 | F45: ='Curriculum Development'!H24 -> 4500 | G45: ='Curriculum Development'!I24 -> 4500 | H45: ='Curriculum Development'!J24 -> 4500 | I45: ='Curriculum Development'!K24 -> 4500 | J45: ='Curriculum Development'!L24 -> 4500 | K45: ='Curriculum Development'!M24 -> 4500 | L45: ='Curriculum Development'!N24 -> 4500
A46: 46 | B46: Marketing | C46: =$C$11*SUM(Credits!D14:D15,Credits!P14:P15)+'Supplies & Services'!D33+'Salaries & Wages'!R41 -> 0 | D46: =$C$11*SUM(Credits!E14:E15,Credits!Q14:Q15)+'Supplies & Services'!E33+'Salaries & Wages'!S41 -> 0 | E46: =$C$11*SUM(Credits!F14:F15,Credits!R14:R15)+'Supplies & Services'!F33+'Salaries & Wages'!T41 -> 0 | F46: =$C$11*SUM(Credits!G14:G15,Credits!S14:S15)+'Supplies & Services'!G33+'Salaries & Wages'!U41 -> 0 | G46: =$C$11*SUM(Credits!H14:H15,Credits!T14:T15)+'Supplies & Services'!H33+'Salaries & Wages'!V41 -> 0 | H46: =$C$11*SUM(Credits!I14:I15,Credits!U14:U15)+'Supplies & Services'!I33+'Salaries & Wages'!W41 -> 0 | I46: =$C$11*SUM(Credits!J14:J15,Credits!V14:V15)+'Supplies & Services'!J33+'Salaries & Wages'!X41 -> 0 | J46: =$C$11*SUM(Credits!K14:K15,Credits!W14:W15)+'Supplies & Services'!K33+'Salaries & Wages'!Y41 -> 0 | K46: =$C$11*SUM(Credits!L14:L15,Credits!X14:X15)+'Supplies & Services'!L33+'Salaries & Wages'!Z41 -> 0 | L46: =$C$11*SUM(Credits!M14:M15,Credits!Y14:Y15)+'Supplies & Services'!M33+'Salaries & Wages'!AA41 -> 0
A47: 47 | B47: Total Program Investment | C47: =SUM(C42:C46) -> 15000 | D47: =SUM(D42:D46) -> 4500 | E47: =SUM(E42:E46) -> 4500 | F47: 4500 | G47: 4500 | H47: 4500 | I47: 4500 | J47: 4500 | K47: 4500 | L47: =SUM(L42:L46) -> 4500
A48: 48
A49: 49 | B49: Total Operating Margin | C49: =C31-SUM(C34:C38)-C47 -> -15000 | D49: =D31-SUM(D34:D38)-D47 -> -4500 | E49: -4500 | F49: -4500 | G49: -4500 | H49: -4500 | I49: -4500 | J49: -4500 | K49: -4500 | L49: -4500
A50: 50 | D50: =IF(D49<0,"-",ABS(C49/SUM($C$47:D47))) -> - | E50: =IF(E49<0,"-",ABS(D49/SUM($C$47:E47))) -> - | F50: =IF(F49<0,"-",ABS(E49/SUM($C$47:F47))) -> - | G50: =IF(G49<0,"-",ABS(F49/SUM($C$47:G47))) -> - | H50: =IF(H49<0,"-",ABS(G49/SUM($C$47:H47))) -> - | I50: =IF(I49<0,"-",ABS(H49/SUM($C$47:I47))) -> - | J50: =IF(J49<0,"-",ABS(I49/SUM($C$47:J47))) -> - | K50: =IF(K49<0,"-",ABS(J49/SUM($C$47:K47))) -> - | L50: =IF(L49<0,"-",ABS(K49/SUM($C$47:L47))) -> -
A51: 51 | B51: Payback (unit investment) | D51: =CONCATENATE(ROUND(COUNTIF(C49:L49,"<"&0)+INDEX(C50:L50,,COUNTIF(C49:K49,"<"&0)+1),2)," years") -> 
A52: 52
A53: 53 | B53: Investment Margin - Department | C53: =C49 -> -15000 | D53: =D49 -> -4500 | E53: -4500 | F53: -4500 | G53: -4500 | H53: -4500 | I53: -4500 | J53: -4500 | K53: -4500 | L53: -4500
A54: 54
A55: 55 | B55: Department Investments (using the margin) - notional example
A56: 56 | B56: Department Salaries | C56: ='Investing the Margin'!D27 -> 0 | D56: ='Investing the Margin'!E27 -> 0 | E56: ='Investing the Margin'!F27 -> 0 | F56: ='Investing the Margin'!G27 -> 0 | G56: ='Investing the Margin'!H27 -> 0 | H56: ='Investing the Margin'!I27 -> 0 | I56: ='Investing the Margin'!J27 -> 0 | J56: ='Investing the Margin'!K27 -> 0 | K56: ='Investing the Margin'!L27 -> 0 | L56: ='Investing the Margin'!M27 -> 0
A57: 57 | B57: New Faculty Lines | C57: ='Investing the Margin'!D28 -> 0 | D57: ='Investing the Margin'!E28 -> 0 | E57: ='Investing the Margin'!F28 -> 0 | F57: ='Investing the Margin'!G28 -> 0 | G57: ='Investing the Margin'!H28 -> 0 | H57: ='Investing the Margin'!I28 -> 0 | I57: ='Investing the Margin'!J28 -> 0 | J57: ='Investing the Margin'!K28 -> 0 | K57: ='Investing the Margin'!L28 -> 0 | L57: ='Investing the Margin'!M28 -> 0
A58: 58 | B58: Additional TA Positions or Scholarships | C58: ='Investing the Margin'!D29 -> 0 | D58: ='Investing the Margin'!E29 -> 0 | E58: ='Investing the Margin'!F29 -> 0 | F58: ='Investing the Margin'!G29 -> 0 | G58: ='Investing the Margin'!H29 -> 0 | H58: ='Investing the Margin'!I29 -> 0 | I58: ='Investing the Margin'!J29 -> 0 | J58: ='Investing the Margin'!K29 -> 0 | K58: ='Investing the Margin'!L29 -> 0 | L58: ='Investing the Margin'!M29 -> 0
A59: 59 | B59: Professional Development | C59: ='Investing the Margin'!D30 -> 0 | D59: ='Investing the Margin'!E30 -> 0 | E59: ='Investing the Margin'!F30 -> 0 | F59: ='Investing the Margin'!G30 -> 0 | G59: ='Investing the Margin'!H30 -> 0 | H59: ='Investing the Margin'!I30 -> 0 | I59: ='Investing the Margin'!J30 -> 0 | J59: ='Investing the Margin'!K30 -> 0 | K59: ='Investing the Margin'!L30 -> 0 | L59: ='Investing the Margin'!M30 -> 0
A60: 60 | B60: Other | C60: ='Investing the Margin'!D31 -> 0 | D60: ='Investing the Margin'!E31 -> 0 | E60: ='Investing the Margin'!F31 -> 0 | F60: ='Investing the Margin'!G31 -> 0 | G60: ='Investing the Margin'!H31 -> 0 | H60: ='Investing the Margin'!I31 -> 0 | I60: ='Investing the Margin'!J31 -> 0 | J60: ='Investing the Margin'!K31 -> 0 | K60: ='Investing the Margin'!L31 -> 0 | L60: ='Investing the Margin'!M31 -> 0
A61: 61 | B61: Surplus | C61: =C53-SUM(C56:C60) -> -15000 | D61: -4500 | E61: -4500 | F61: -4500 | G61: -4500 | H61: -4500 | I61: -4500 | J61: -4500 | K61: -4500 | L61: -4500
A62: 62
A63: 63 | B63: Total Enrollment | C63: =SUM(Credits!D14:D15,Credits!P14:P15) -> 0 | D63: =SUM(Credits!E14:E15,Credits!Q14:Q15) -> 0 | E63: =SUM(Credits!F14:F15,Credits!R14:R15) -> 0 | F63: =SUM(Credits!G14:G15,Credits!S14:S15) -> 0 | G63: =SUM(Credits!H14:H15,Credits!T14:T15) -> 0 | H63: =SUM(Credits!I14:I15,Credits!U14:U15) -> 0 | I63: =SUM(Credits!J14:J15,Credits!V14:V15) -> 0 | J63: =SUM(Credits!K14:K15,Credits!W14:W15) -> 0 | K63: =SUM(Credits!L14:L15,Credits!X14:X15) -> 0 | L63: =SUM(Credits!M14:M15,Credits!Y14:Y15) -> 0
A64: 64
A65: 65 | B65: Instructions & notes
A66: 66 | B66: Data should be entered only in the cells shaded in green
A67: 67 | B67: Incremental margin reflects new margin above prior year
A68: 68 | B68: Program development costs should reflect the investment from campus and Division of Continuing Studies
A69: 69 | B69: Marketing cost to acquire new students should be $3,000 or more.
A70: 70
A71: 71
A72: 72
A73: 73
A74: 74
A75: 75
A76: =A75+1 -> 76
A77: 77
A78: 78
A79: 79 | B79: Years
A80: 80 | B80: 2018
A81: 81 | B81: 2019
A82: 82 | B82: 2020
A83: 83 | B83: 2021
A84: 84 | B84: 2022
A85: 85 | B85: 2023
A86: 86 | B86: 2024
A87: 87 | B87: 2025
A88: 88 | B88: 2026
A89: 89 | B89: 2027
A90: 90
A91: 91
A92: 92
A93: 93

Sheet Credits
A1: 1 | C1: Instructions: Enter credits and Enrollment Total in each green box
A2: =A1+1 -> 2 | D2: Credit Load
A3: =A2+1 -> 3 | D3: Full time | E3: Part-time
A4: 4 | C4: Year 1 --> | D4: 30 | E4: 15 | F4: <-- Year 1
A5: 5 | C5: =IF('131 Program Summary'!$F$3>1, "Year 2 -->","") ->  | E5: 15 | F5: =IF('131 Program Summary'!$F$4>1, "<-- Year 2","") -> <-- Year 2
A6: 6 | C6: =IF('131 Program Summary'!$F$3>2, "Year 3 -->","") ->  | F6: =IF('131 Program Summary'!$F$4>2, "<-- Year 3","") -> 
A7: 7 | C7: =IF('131 Program Summary'!$F$3>3, "Year 4 -->","") ->  | F7: =IF('131 Program Summary'!$F$4>3, "<-- Year 4","") -> 
A8: 8 | C8: =IF('131 Program Summary'!$F$3>4, "Year 5 -->","") ->  | F8: =IF('131 Program Summary'!$F$4>4, "<-- Year 5","") -> 
A9: 9 | C9: =IF('131 Program Summary'!$F$3>5, "Year 6 -->","") ->  | F9: =IF('131 Program Summary'!$F$4>5, "<-- Year 6","") -> 
A10: 10 | D10: =SUM(D4:D9) -> 30 | E10: =SUM(E4:E9) -> 30
A11: 11
A12: 12 | D12: Enrollment By Year (Full Time) | P12: Enrollment By Year (Part Time)
A13: 13 | D13: ='131 Program Summary'!C22 -> 2020 | E13: ='131 Program Summary'!D22 -> 2021 | F13: ='131 Program Summary'!E22 -> 2022 | G13: ='131 Program Summary'!F22 -> 2023 | H13: ='131 Program Summary'!G22 -> 2024 | I13: ='131 Program Summary'!H22 -> 2025 | J13: ='131 Program Summary'!I22 -> 2026 | K13: ='131 Program Summary'!J22 -> 2027 | L13: ='131 Program Summary'!K22 -> 2028 | M13: ='131 Program Summary'!L22 -> 2029 | P13: =D13 -> 2020 | Q13: =E13 -> 2021 | R13: 2022 | S13: 2023 | T13: 2024 | U13: 2025 | V13: 2026 | W13: 2027 | X13: 2028 | Y13: 2029
A14: 14 | C14: Program Year 1 - Resident | D14: 0 | E14: 0 | F14: 0 | G14: 0 | H14: 0 | I14: 0 | J14: 0 | K14: 0 | L14: 0 | M14: 0 | O14: Program Year 1 - Resident | P14: 0 | Q14: 0 | R14: 0 | S14: 0 | T14: 0 | U14: 0 | V14: 0 | W14: 0 | X14: 0 | Y14: 0
A15: 15 | C15: Program Year 1 - Nonresident | D15: 0 | E15: 0 | F15: 0 | G15: 0 | H15: 0 | I15: 0 | J15: 0 | K15: 0 | L15: 0 | M15: 0 | O15: Program Year 1 - Nonresident | P15: 0 | Q15: 0 | R15: 0 | S15: 0 | T15: 0 | U15: 0 | V15: 0 | W15: 0 | X15: 0 | Y15: 0
A16: 16 | C16: =IF(C5="Year 2 -->","Program Year 2 - Resident","") ->  | E16: =IF(ISBLANK($D5),0,D14) -> 0 | F16: 0 | G16: 0 | H16: 0 | I16: 0 | J16: 0 | K16: 0 | L16: 0 | M16: 0 | O16: =IF(F5="<-- Year 2","Program Year 2 - Resident","") -> Program Year 2 - Resident | Q16: =IF(ISBLANK($E5),0,P14) -> 0 | R16: 0 | S16: 0 | T16: 0 | U16: 0 | V16: 0 | W16: 0 | X16: 0 | Y16: 0
A17: 17 | C17: =IF(C5="Year 2 -->","Program Year 2 - Nonresident","") ->  | E17: =IF(ISBLANK($D5),0,D15) -> 0 | F17: 0 | G17: 0 | H17: 0 | I17: 0 | J17: 0 | K17: 0 | L17: 0 | M17: 0 | O17: =IF(F5="<-- Year 2","Program Year 2 - Nonresident","") -> Program Year 2 - Nonresident | Q17: =IF(ISBLANK($E5),0,P15) -> 0 | R17: 0 | S17: 0 | T17: 0 | U17: 0 | V17: 0 | W17: 0 | X17: 0 | Y17: 0
A18: 18 | C18: =IF(C6="Year 3 -->","Program Year 3 - Resident","") ->  | F18: =IF(ISBLANK($D6),0,E16) -> 0 | G18: 0 | H18: 0 | I18: 0 | J18: 0 | K18: 0 | L18: 0 | M18: 0 | O18: =IF(F6="<-- Year 3","Program Year 3 - Resident","") ->  | R18: =IF(ISBLANK($E6),0,Q16) -> 0 | S18: 0 | T18: 0 | U18: 0 | V18: 0 | W18: 0 | X18: 0 | Y18: 0
A19: 19 | C19: =IF(C6="Year 3 -->","Program Year 3 - Nonresident","") ->  | F19: =IF(ISBLANK($D6),0,E17) -> 0 | G19: 0 | H19: 0 | I19: 0 | J19: 0 | K19: 0 | L19: 0 | M19: 0 | O19: =IF(F6="<-- Year 3","Program Year 3 - Nonresident","") ->  | R19: =IF(ISBLANK($E6),0,Q17) -> 0 | S19: 0 | T19: 0 | U19: 0 | V19: 0 | W19: 0 | X19: 0 | Y19: 0
A20: 20 | C20: =IF(C7="Year 4 -->","Program Year 4 - Resident","") ->  | G20: =IF(ISBLANK($D7),0,F18) -> 0 | H20: 0 | I20: 0 | J20: 0 | K20: 0 | L20: 0 | M20: 0 | O20: =IF(F7="<-- Year 4","Program Year 4 - Resident","") ->  | S20: =IF(ISBLANK($E7),0,R18) -> 0 | T20: 0 | U20: 0 | V20: 0 | W20: 0 | X20: 0 | Y20: 0
A21: 21 | C21: =IF(C7="Year 4 -->","Program Year 4 - Nonresident","") ->  | G21: =IF(ISBLANK($D7),0,F19) -> 0 | H21: 0 | I21: 0 | J21: 0 | K21: 0 | L21: 0 | M21: 0 | O21: =IF(F7="<-- Year 4","Program Year 4 - Nonresident","") ->  | S21: =IF(ISBLANK($E7),0,R19) -> 0 | T21: 0 | U21: 0 | V21: 0 | W21: 0 | X21: 0 | Y21: 0
A22: 22 | C22: =IF(C8="Year 5 -->","Program Year 5 - Resident","") ->  | H22: =IF(ISBLANK($D8),0,G20) -> 0 | I22: 0 | J22: 0 | K22: 0 | L22: 0 | M22: 0 | O22: =IF(F8="<-- Year 5","Program Year 5 - Resident","") ->  | T22: =IF(ISBLANK($E8),0,S20) -> 0 | U22: 0 | V22: 0 | W22: 0 | X22: 0 | Y22: 0
A23: 23 | C23: =IF(C8="Year 5 -->","Program Year 5 - Nonresident","") ->  | H23: =IF(ISBLANK($D8),0,G21) -> 0 | I23: 0 | J23: 0 | K23: 0 | L23: 0 | M23: 0 | O23: =IF(F8="<-- Year 5","Program Year 5 - Nonresident","") ->  | T23: =IF(ISBLANK($E8),0,S21) -> 0 | U23: 0 | V23: 0 | W23: 0 | X23: 0 | Y23: 0
A24: 24 | C24: =IF(C9="Year 6 -->","Program Year 6 - Resident","") ->  | I24: =IF(ISBLANK($D9),0,H22) -> 0 | J24: =IF(ISBLANK($D9),0,I22) -> 0 | K24: =IF(ISBLANK($D9),0,J22) -> 0 | L24: =IF(ISBLANK($D9),0,K22) -> 0 | M24: =IF(ISBLANK($D9),0,L22) -> 0 | O24: =IF(F9="<-- Year 6","Program Year 6 - Resident","") ->  | U24: =IF(ISBLANK($E9),0,T22) -> 0 | V24: =IF(ISBLANK($E9),0,U22) -> 0 | W24: =IF(ISBLANK($E9),0,V22) -> 0 | X24: =IF(ISBLANK($E9),0,W22) -> 0 | Y24: =IF(ISBLANK($E9),0,X22) -> 0
A25: 25 | C25: =IF(C9="Year 6 -->","Program Year 6 - Nonresident","") ->  | I25: =IF(ISBLANK($D9),0,H23) -> 0 | J25: =IF(ISBLANK($D9),0,I23) -> 0 | K25: =IF(ISBLANK($D9),0,J23) -> 0 | L25: =IF(ISBLANK($D9),0,K23) -> 0 | M25: =IF(ISBLANK($D9),0,L23) -> 0 | O25: =IF(F9="<-- Year 6","Program Year 6 - Nonresident","") ->  | U25: =IF(ISBLANK($E9),0,T23) -> 0 | V25: =IF(ISBLANK($E9),0,U23) -> 0 | W25: =IF(ISBLANK($E9),0,V23) -> 0 | X25: =IF(ISBLANK($E9),0,W23) -> 0 | Y25: =IF(ISBLANK($E9),0,X23) -> 0
A26: 26
A27: 27
A28: 28
A29: 29
A30: 30
A31: 31
A32: 32
A33: 33
A34: 34
A35: 35
A36: 36
A37: 37
A38: 38
A39: 39
A40: 40
A41: 41
A42: 42
A43: 43
A44: 44
A45: 45
A46: 46
A47: 47
A48: 48
A49: 49
A50: 50
A51: 51
A52: 52
A53: 53
A54: 54
A55: 55
A56: 56
A57: 57
A58: 58
A59: 59
A60: 60
A61: 61
A62: 62
A63: 63
A64: 64
A65: 65
A66: 66
A67: =A66+1 -> 67
A68: 68
A69: 69
A70: 70
A71: 71
A72: 72
A73: 73
A74: 74
A75: 75
A76: 76
A77: 77
A78: 78
A79: 79
A80: 80
A81: 81
A82: 82
A83: 83
A84: 84
A85: 85
A86: 86
A87: 87

Sheet Curriculum Development
A1: Worksheet for Curriculum | E1: ='131 Program Summary'!C22 -> 2020 | F1: ='131 Program Summary'!D22 -> 2021 | G1: ='131 Program Summary'!E22 -> 2022 | H1: ='131 Program Summary'!F22 -> 2023 | I1: ='131 Program Summary'!G22 -> 2024 | J1: ='131 Program Summary'!H22 -> 2025 | K1: ='131 Program Summary'!I22 -> 2026 | L1: ='131 Program Summary'!J22 -> 2027 | M1: ='131 Program Summary'!K22 -> 2028 | N1: ='131 Program Summary'!L22 -> 2029
A2: Course name | B2: Credits | C2: Type | D2: Year of Development | E2: =CONCATENATE(E1," ","Development Cost (standard $30,000, transition $15,000, and 15% maintenance)") -> 2020 Development Cost (standard $30,000, transition $15,000, and 15% maintenance) | F2: =CONCATENATE(F1," ","Development Cost (standard $30,000, transition $15,000, and 15% maintenance)") -> 2021 Development Cost (standard $30,000, transition $15,000, and 15% maintenance) | G2: 2022 Development Cost (standard $30,000, transition $15,000, and 15% maintenance) | H2: 2023 Development Cost (standard $30,000, transition $15,000, and 15% maintenance) | I2: 2024 Development Cost (standard $30,000, transition $15,000, and 15% maintenance) | J2: 2025 Development Cost (standard $30,000, transition $15,000, and 15% maintenance) | K2: 2026 Development Cost (standard $30,000, transition $15,000, and 15% maintenance) | L2: 2027 Development Cost (standard $30,000, transition $15,000, and 15% maintenance) | M2: 2028 Development Cost (standard $30,000, transition $15,000, and 15% maintenance) | N2: 2029 Development Cost (standard $30,000, transition $15,000, and 15% maintenance)
A4: Course 1 | C4: Transition | D4: 2020 | E4: =IF(ISBLANK($A4),"",IF(E$1<$D4,"",IF(E$1>$D4,30000*0.15,IF($C4="Maintenance",30000*0.15,IF($C4="New",30000,15000))))) -> 15000 | F4: =IF(ISBLANK($A4),"",IF(F$1<$D4,"",IF(F$1>$D4,30000*0.15,IF($C4="Maintenance",30000*0.15,IF($C4="New",30000,15000))))) -> 4500 | G4: 4500 | H4: 4500 | I4: 4500 | J4: 4500 | K4: 4500 | L4: 4500 | M4: 4500 | N4: 4500
E5: =IF(ISBLANK($A5),"",IF(E$1<$D5,"",IF(E$1>$D5,30000*0.15,IF($C5="Maintenance",30000*0.15,IF($C5="New",30000,15000))))) -> 
E6: =IF(ISBLANK($A6),"",IF(E$1<$D6,"",IF(E$1>$D6,30000*0.15,IF($C6="Maintenance",30000*0.15,IF($C6="New",30000,15000))))) -> 
A18: Insert Here
A19: Total | E19: =SUM(E4:E18) -> 15000 | F19: 4500 | G19: 4500 | H19: =SUM(H4:H18) -> 4500 | I19: 4500 | J19: 4500 | K19: 4500 | L19: 4500 | M19: 4500 | N19: 4500
E23: =E1 -> 2020 | F23: =F1 -> 2021 | G23: 2022 | H23: 2023 | I23: 2024 | J23: 2025 | K23: 2026 | L23: 2027 | M23: 2028 | N23: 2029
E24: =E19 -> 15000 | F24: =F19 -> 4500 | G24: 4500 | H24: 4500 | I24: 4500 | J24: 4500 | K24: 4500 | L24: 4500 | M24: 4500 | N24: 4500
A28: Notes
A29: Must populate green in column A
A30: You may override the development cost or the maintenance cost.

Sheet Salaries & Wages
A1: Worksheet for Salaries & Wages
B2: Note: Open + for each year to fill in additional data | K2: ='131 Program Summary'!C22 -> 2020 | O2: ='131 Program Summary'!D22 -> 2021 | S2: ='131 Program Summary'!E22 -> 2022 | W2: ='131 Program Summary'!F22 -> 2023 | AA2: ='131 Program Summary'!G22 -> 2024 | AE2: ='131 Program Summary'!H22 -> 2025 | AI2: ='131 Program Summary'!I22 -> 2026 | AM2: ='131 Program Summary'!J22 -> 2027 | AQ2: ='131 Program Summary'!K22 -> 2028 | AU2: ='131 Program Summary'!L22 -> 2029
A3: Name | B3: Title | C3: Type | D3: Employee Type | E3: Role Description (free form) | F3: Salary / Wage | G3: Pay Basis | H3: Fringe Rate | I3: Compensation Escalator | K3: Months | L3: Effort | M3: Requested Salary | N3: Total Cost | O3: Months | P3: Effort | Q3: Requested Salary | R3: Total Cost | S3: Months | T3: Effort | U3: Requested Salary | V3: Total Cost | W3: Months | X3: Effort | Y3: Requested Salary | Z3: Total Cost | AA3: Months | AB3: Effort | AC3: Requested Salary | AD3: Total Cost | AE3: Months | AF3: Effort | AG3: Requested Salary | AH3: Total Cost | AI3: Months | AJ3: Effort | AK3: Requested Salary | AL3: Total Cost | AM3: Months | AN3: Effort | AO3: Requested Salary | AP3: Total Cost | AQ3: Months | AR3: Effort | AS3: Requested Salary | AT3: Total Cost | AU3: Months | AV3: Effort | AW3: Requested Salary | AX3: Total Cost
C5: Program Development - Startup (DCS / Campus) | D5: Faculty / Academic Staff | G5: Annual (A basis) | H5: =IFERROR(VLOOKUP($D5,$B$45:$C$48,2),"") -> 0.3333 | I5: 2% | K5: 12 | L5: 1 | M5: =ROUND((IF($G5="Hourly (H basis)",$F5,($F5/IF($G5="Annual (A basis)",12,9)*K5*L5))),0) -> 0 | N5: =SUMPRODUCT(M5,1+$H5) -> 0 | O5: 12 | P5: 1 | Q5: =ROUND((IF($G5="Hourly (H basis)",$F5,($F5/IF($G5="Annual (A basis)",12,9)*O5*P5))),0) -> 0 | R5: =SUMPRODUCT(Q5,1+$H5)*(1+$I5^1) -> 0 | S5: 12 | T5: 1 | U5: =ROUND((IF($G5="Hourly (H basis)",$F5,($F5/IF($G5="Annual (A basis)",12,9)*S5*T5))),0) -> 0 | V5: =SUMPRODUCT(U5,1+$H5)*((1+$I5)^2) -> 0 | W5: 12 | X5: 1 | Y5: =ROUND((IF($G5="Hourly (H basis)",$F5,($F5/IF($G5="Annual (A basis)",12,9)*W5*X5))),0) -> 0 | Z5: =SUMPRODUCT(Y5,1+$H5)*((1+$I5)^3) -> 0 | AA5: 12 | AB5: 1 | AC5: =ROUND((IF($G5="Hourly (H basis)",$F5,($F5/IF($G5="Annual (A basis)",12,9)*AA5*AB5))),0) -> 0 | AD5: =SUMPRODUCT(AC5,1+$H5)*((1+$I5)^4) -> 0 | AE5: 12 | AF5: 1 | AG5: =ROUND((IF($G5="Hourly (H basis)",$F5,($F5/IF($G5="Annual (A basis)",12,9)*AE5*AF5))),0) -> 0 | AH5: =SUMPRODUCT(AG5,1+$H5)*((1+$I5)^5) -> 0 | AI5: 12 | AJ5: 1 | AK5: =ROUND((IF($G5="Hourly (H basis)",$F5,($F5/IF($G5="Annual (A basis)",12,9)*AI5*AJ5))),0) -> 0 | AL5: =SUMPRODUCT(AK5,1+$H5)*((1+$I5)^6) -> 0 | AM5: 12 | AN5: 1 | AO5: =ROUND((IF($G5="Hourly (H basis)",$F5,($F5/IF($G5="Annual (A basis)",12,9)*AM5*AN5))),0) -> 0 | AP5: =SUMPRODUCT(AO5,1+$H5)*((1+$I5)^7) -> 0 | AQ5: 12 | AR5: 1 | AS5: =ROUND((IF($G5="Hourly (H basis)",$F5,($F5/IF($G5="Annual (A basis)",12,9)*AQ5*AR5))),0) -> 0 | AT5: =SUMPRODUCT(AS5,1+$H5)*((1+$I5)^8) -> 0 | AU5: 12 | AV5: 1 | AW5: =ROUND((IF($G5="Hourly (H basis)",$F5,($F5/IF($G5="Annual (A basis)",12,9)*AU5*AV5))),0) -> 0 | AX5: =SUMPRODUCT(AW5,1+$H5)*((1+$I5)^9) -> 0
C6: Program Marketing | D6: Faculty / Academic Staff | G6: Annual (A basis) | H6: =IFERROR(VLOOKUP($D6,$B$45:$C$48,2),"") -> 0.3333 | I6: 2% | K6: 12 | L6: 1 | M6: =ROUND((IF($G6="Hourly (H basis)",$F6,($F6/IF($G6="Annual (A basis)",12,9)*K6*L6))),0) -> 0 | N6: =SUMPRODUCT(M6,1+$H6) -> 0 | O6: 12 | P6: 1 | Q6: =ROUND((IF($G6="Hourly (H basis)",$F6,($F6/IF($G6="Annual (A basis)",12,9)*O6*P6))),0) -> 0 | R6: =SUMPRODUCT(Q6,1+$H6)*(1+$I6^1) -> 0 | S6: 12 | T6: 1 | U6: =ROUND((IF($G6="Hourly (H basis)",$F6,($F6/IF($G6="Annual (A basis)",12,9)*S6*T6))),0) -> 0 | V6: =SUMPRODUCT(U6,1+$H6)*((1+$I6)^2) -> 0 | W6: 12 | X6: 1 | Y6: =ROUND((IF($G6="Hourly (H basis)",$F6,($F6/IF($G6="Annual (A basis)",12,9)*W6*X6))),0) -> 0 | Z6: =SUMPRODUCT(Y6,1+$H6)*((1+$I6)^3) -> 0 | AA6: 12 | AB6: 1 | AC6: =ROUND((IF($G6="Hourly (H basis)",$F6,($F6/IF($G6="Annual (A basis)",12,9)*AA6*AB6))),0) -> 0 | AD6: =SUMPRODUCT(AC6,1+$H6)*((1+$I6)^4) -> 0 | AE6: 12 | AF6: 1 | AG6: =ROUND((IF($G6="Hourly (H basis)",$F6,($F6/IF($G6="Annual (A basis)",12,9)*AE6*AF6))),0) -> 0 | AH6: =SUMPRODUCT(AG6,1+$H6)*((1+$I6)^5) -> 0 | AI6: 12 | AJ6: 1 | AK6: =ROUND((IF($G6="Hourly (H basis)",$F6,($F6/IF($G6="Annual (A basis)",12,9)*AI6*AJ6))),0) -> 0 | AL6: =SUMPRODUCT(AK6,1+$H6)*((1+$I6)^6) -> 0 | AM6: 12 | AN6: 1 | AO6: =ROUND((IF($G6="Hourly (H basis)",$F6,($F6/IF($G6="Annual (A basis)",12,9)*AM6*AN6))),0) -> 0 | AP6: =SUMPRODUCT(AO6,1+$H6)*((1+$I6)^7) -> 0 | AQ6: 12 | AR6: 1 | AS6: =ROUND((IF($G6="Hourly (H basis)",$F6,($F6/IF($G6="Annual (A basis)",12,9)*AQ6*AR6))),0) -> 0 | AT6: =SUMPRODUCT(AS6,1+$H6)*((1+$I6)^8) -> 0 | AU6: 12 | AV6: 1 | AW6: =ROUND((IF($G6="Hourly (H basis)",$F6,($F6/IF($G6="Annual (A basis)",12,9)*AU6*AV6))),0) -> 0 | AX6: =SUMPRODUCT(AW6,1+$H6)*((1+$I6)^9) -> 0
C7: Instructional | D7: Faculty / Academic Staff | G7: Annual (A basis) | H7: =IFERROR(VLOOKUP($D7,$B$45:$C$48,2),"") -> 0.3333 | I7: 2% | K7: 12 | L7: 1 | M7: =ROUND((IF($G7="Hourly (H basis)",$F7,($F7/IF($G7="Annual (A basis)",12,9)*K7*L7))),0) -> 0 | N7: 0 | O7: 12 | P7: 1 | Q7: 0 | R7: 0 | S7: 12 | T7: 1 | U7: 0 | V7: 0 | W7: 12 | X7: 1 | Y7: 0 | Z7: 0 | AA7: 12 | AB7: 1 | AC7: 0 | AD7: 0 | AE7: 12 | AF7: 1 | AG7: 0 | AH7: 0 | AI7: 12 | AJ7: 1 | AK7: 0 | AL7: 0 | AM7: 12 | AN7: 1 | AO7: 0 | AP7: 0 | AQ7: 12 | AR7: 1 | AS7: 0 | AT7: 0 | AU7: 12 | AV7: 1 | AW7: 0 | AX7: 0
C8: Program Development - Startup (DCS / Campus) | D8: RA / PA / TA | G8: Annual (A basis) | H8: =IFERROR(VLOOKUP($D8,$B$45:$C$48,2),"") -> 0.3333 | I8: 2% | K8: 12 | L8: 0.5 | M8: =ROUND((IF($G8="Hourly (H basis)",$F8,($F8/IF($G8="Annual (A basis)",12,9)*K8*L8))),0) -> 0 | N8: 0 | O8: 12 | P8: 0.5 | Q8: 0 | R8: 0 | S8: 12 | T8: 0.5 | U8: 0 | V8: 0 | W8: 12 | X8: 0.5 | Y8: 0 | Z8: 0 | AA8: 12 | AB8: 1 | AC8: 0 | AD8: 0 | AE8: 12 | AF8: 0.5 | AG8: 0 | AH8: 0 | AI8: 12 | AJ8: 0.5 | AK8: 0 | AL8: 0 | AM8: 12 | AN8: 1 | AO8: 0 | AP8: 0 | AQ8: 12 | AR8: 1 | AS8: 0 | AT8: 0 | AU8: 12 | AV8: 1 | AW8: 0 | AX8: 0
C9: Program Development - Startup (DCS / Campus) | D9: Faculty / Academic Staff | G9: Annual (A basis) | H9: =IFERROR(VLOOKUP($D9,$B$45:$C$48,2),"") -> 0.3333 | I9: 2% | K9: 12 | L9: 1 | M9: 0 | N9: 0 | O9: 12 | P9: 1 | Q9: 0 | R9: 0 | S9: 12 | T9: 1 | U9: 0 | V9: 0 | W9: 12 | X9: 1 | Y9: 0 | Z9: 0 | AA9: 12 | AB9: 1 | AC9: 0 | AD9: 0 | AE9: 12 | AF9: 1 | AG9: 0 | AH9: 0 | AI9: 12 | AJ9: 1 | AK9: 0 | AL9: 0 | AM9: 12 | AN9: 1 | AO9: 0 | AP9: 0 | AQ9: 12 | AR9: 1 | AS9: 0 | AT9: 0 | AU9: 12 | AV9: 1 | AW9: 0 | AX9: 0
C10: Program Support | D10: Unversity Staff | G10: Annual (A basis) | H10: =IFERROR(VLOOKUP($D10,$B$45:$C$48,2),"") -> 0.425 | I10: 2% | K10: 12 | L10: 1 | M10: 0 | N10: 0 | O10: 12 | P10: 1 | Q10: 0 | R10: 0 | S10: 12 | T10: 1 | U10: 0 | V10: 0 | W10: 12 | X10: 1 | Y10: 0 | Z10: 0 | AA10: 12 | AB10: 1 | AC10: 0 | AD10: 0 | AE10: 12 | AF10: 1 | AG10: 0 | AH10: 0 | AI10: 12 | AJ10: 1 | AK10: 0 | AL10: 0 | AM10: 12 | AN10: 1 | AO10: 0 | AP10: 0 | AQ10: 12 | AR10: 1 | AS10: 0 | AT10: 0 | AU10: 12 | AV10: 1 | AW10: 0 | AX10: 0
C11: Program Development - Startup | D11: Faculty / Academic Staff | G11: Annual (A basis) | H11: =IFERROR(VLOOKUP($D11,$B$45:$C$48,2),"") -> 0.3333 | I11: 2% | K11: 12 | L11: 1 | M11: =ROUND((IF($G11="Hourly (H basis)",$F11,($F11/IF($G11="Annual (A basis)",12,9)*K11*L11))),0) -> 0 | N11: 0 | O11: 12 | P11: 1 | Q11: 0 | R11: 0 | S11: 12 | T11: 1 | U11: 0 | V11: 0 | W11: 12 | X11: 1 | Y11: 0 | Z11: 0 | AA11: 12 | AB11: 1 | AC11: 0 | AD11: 0 | AE11: 12 | AF11: 1 | AG11: 0 | AH11: 0 | AI11: 12 | AJ11: 1 | AK11: 0 | AL11: 0 | AM11: 12 | AN11: 1 | AO11: 0 | AP11: =SUMPRODUCT(AO11,1+$H11)*((1+$I11)^7) -> 0 | AQ11: 12 | AR11: 1 | AS11: 0 | AT11: 0 | AU11: 12 | AV11: 1 | AW11: 0 | AX11: 0
C12: Program Marketing | D12: Faculty / Academic Staff | G12: Annual (A basis) | H12: =IFERROR(VLOOKUP($D12,$B$45:$C$48,2),"") -> 0.3333 | I12: 2% | K12: 12 | L12: 1 | M12: =ROUND((IF($G12="Hourly (H basis)",$F12,($F12/IF($G12="Annual (A basis)",12,9)*K12*L12))),0) -> 0 | N12: 0 | O12: 12 | P12: 1 | Q12: 0 | R12: 0 | S12: 12 | T12: 1 | U12: 0 | V12: 0 | W12: 12 | X12: 1 | Y12: 0 | Z12: 0 | AA12: 12 | AB12: 1 | AC12: 0 | AD12: 0 | AE12: 12 | AF12: 1 | AG12: 0 | AH12: 0 | AI12: 12 | AJ12: 1 | AK12: 0 | AL12: 0 | AM12: 12 | AN12: 1 | AO12: 0 | AP12: 0 | AQ12: 12 | AR12: 1 | AS12: 0 | AT12: 0 | AU12: 12 | AV12: 1 | AW12: 0 | AX12: 0
C13: Instructional | D13: Faculty / Academic Staff | G13: Annual (A basis) | H13: =IFERROR(VLOOKUP($D13,$B$45:$C$48,2),"") -> 0.3333 | I13: 2% | K13: 12 | L13: 1 | M13: 0 | N13: 0 | O13: 12 | P13: 1 | Q13: 0 | R13: 0 | S13: 12 | T13: 1 | U13: 0 | V13: 0 | W13: 12 | X13: 1 | Y13: 0 | Z13: 0 | AA13: 12 | AB13: 1 | AC13: 0 | AD13: 0 | AE13: 12 | AF13: 1 | AG13: 0 | AH13: 0 | AI13: 12 | AJ13: 1 | AK13: 0 | AL13: 0 | AM13: 12 | AN13: 1 | AO13: 0 | AP13: 0 | AQ13: 12 | AR13: 1 | AS13: 0 | AT13: 0 | AU13: 12 | AV13: 1 | AW13: 0 | AX13: 0
C14: Instructional | D14: RA / PA / TA | G14: Annual (A basis) | H14: =IFERROR(VLOOKUP($D14,$B$45:$C$48,2),"") -> 0.3333 | I14: 2% | K14: 12 | L14: 0.5 | M14: 0 | N14: 0 | O14: 12 | P14: 0.5 | Q14: 0 | R14: =SUMPRODUCT(Q14,1+$H14)*(1+$I14^1) -> 0 | S14: 12 | T14: 0.5 | U14: 0 | V14: 0 | W14: 12 | X14: 0.5 | Y14: 0 | Z14: 0 | AA14: 12 | AB14: 0.5 | AC14: 0 | AD14: 0 | AE14: 12 | AF14: 0.5 | AG14: 0 | AH14: 0 | AI14: 12 | AJ14: 0.5 | AK14: 0 | AL14: 0 | AM14: 12 | AN14: 0.5 | AO14: 0 | AP14: 0 | AQ14: 12 | AR14: 0.5 | AS14: 0 | AT14: 0 | AU14: 12 | AV14: 0.5 | AW14: 0 | AX14: 0
I15: 2% | M15: 0 | N15: 0 | Q15: 0 | R15: 0 | U15: 0 | V15: 0 | Y15: 0 | Z15: 0 | AC15: 0 | AD15: 0 | AG15: 0 | AH15: 0 | AK15: 0 | AL15: 0 | AO15: 0 | AP15: 0 | AS15: 0 | AT15: 0 | AW15: 0 | AX15: 0
I16: 2% | M16: 0 | N16: 0 | Q16: 0 | R16: 0 | U16: 0 | V16: 0 | Y16: 0 | Z16: 0 | AC16: 0 | AD16: 0 | AG16: 0 | AH16: 0 | AK16: 0 | AL16: 0 | AO16: 0 | AP16: 0 | AS16: 0 | AT16: 0 | AW16: 0 | AX16: 0
I17: 2% | M17: 0 | N17: 0 | Q17: 0 | R17: 0 | U17: 0 | V17: 0 | Y17: 0 | Z17: 0 | AC17: 0 | AD17: 0 | AG17: 0 | AH17: 0 | AK17: 0 | AL17: 0 | AO17: 0 | AP17: 0 | AS17: 0 | AT17: 0 | AW17: 0 | AX17: 0
I18: 2% | M18: 0 | N18: 0 | Q18: 0 | R18: 0 | U18: 0 | V18: 0 | Y18: 0 | Z18: 0 | AC18: 0 | AD18: 0 | AG18: 0 | AH18: 0 | AK18: 0 | AL18: 0 | AO18: 0 | AP18: 0 | AS18: 0 | AT18: 0 | AW18: 0 | AX18: 0
I19: 2% | M19: 0 | N19: 0 | Q19: 0 | R19: 0 | U19: 0 | V19: 0 | Y19: 0 | Z19: 0 | AC19: 0 | AD19: 0 | AG19: 0 | AH19: 0 | AK19: 0 | AL19: 0 | AO19: 0 | AP19: 0 | AS19: 0 | AT19: 0 | AW19: 0 | AX19: 0
I20: 2% | M20: 0 | N20: 0 | Q20: 0 | R20: 0 | U20: 0 | V20: 0 | Y20: 0 | Z20: 0 | AC20: 0 | AD20: 0 | AG20: 0 | AH20: =SUMPRODUCT(AG20,1+$H20)*((1+$I20)^5) -> 0 | AK20: 0 | AL20: 0 | AO20: 0 | AP20: 0 | AS20: 0 | AT20: 0 | AW20: 0 | AX20: 0
I21: 2% | M21: 0 | N21: 0 | Q21: 0 | R21: 0 | U21: 0 | V21: 0 | Y21: 0 | Z21: 0 | AC21: 0 | AD21: 0 | AG21: 0 | AH21: 0 | AK21: 0 | AL21: 0 | AO21: 0 | AP21: 0 | AS21: 0 | AT21: 0 | AW21: 0 | AX21: 0
I22: 2% | M22: 0 | N22: 0 | Q22: 0 | R22: 0 | U22: 0 | V22: 0 | Y22: 0 | Z22: 0 | AC22: 0 | AD22: 0 | AG22: 0 | AH22: 0 | AK22: 0 | AL22: 0 | AO22: 0 | AP22: 0 | AS22: 0 | AT22: 0 | AW22: 0 | AX22: 0
I23: 2% | M23: 0 | N23: 0 | Q23: 0 | R23: 0 | U23: 0 | V23: 0 | Y23: 0 | Z23: 0 | AC23: 0 | AD23: 0 | AG23: 0 | AH23: 0 | AK23: 0 | AL23: 0 | AO23: 0 | AP23: 0 | AS23: 0 | AT23: 0 | AW23: 0 | AX23: 0
I24: 2% | M24: 0 | N24: 0 | Q24: 0 | R24: 0 | U24: 0 | V24: 0 | Y24: 0 | Z24: 0 | AC24: 0 | AD24: 0 | AG24: 0 | AH24: 0 | AK24: 0 | AL24: 0 | AO24: 0 | AP24: 0 | AS24: 0 | AT24: 0 | AW24: 0 | AX24: 0
A25: Insert Here
A28: NOTE: if you are paying for PA/RA students, you MUST complete the Tuition Remission sheet to ensure you request sufficient funds to cover the Tuition Remission costs.
M31: =Validation!$A2 -> Instructional | N31: =SUMIF($C$5:$C$25,M31,N$5:N$25) -> 0 | Q31: =Validation!$A2 -> Instructional | R31: =SUMIF($C$5:$C$25,Q31,R$5:R$25) -> 0 | U31: =Validation!$A2 -> Instructional | V31: =SUMIF($C$5:$C$25,U31,$V$5:V24) -> 0 | Y31: =Validation!$A2 -> Instructional | Z31: =SUMIF($C$5:$C$25,Y31,Z$5:Z$25) -> 0 | AC31: =Validation!$A2 -> Instructional | AD31: =SUMIF($C$5:$C$25,AC31,AD$5:AD$25) -> 0 | AG31: =Validation!$A2 -> Instructional | AH31: =SUMIF($C$5:$C$25,AG31,AH$5:AH$25) -> 0 | AK31: =Validation!$A2 -> Instructional | AL31: =SUMIF($C$5:$C$25,AK31,AL$5:AL$25) -> 0 | AO31: =Validation!$A2 -> Instructional | AP31: =SUMIF($C$5:$C$25,AO31,AP$5:AP$25) -> 0 | AS31: =Validation!$A2 -> Instructional | AT31: =SUMIF($C$5:$C$25,AS31,AT$5:AT$25) -> 0 | AW31: =Validation!$A2 -> Instructional | AX31: =SUMIF($C$5:$C$25,AW31,AX$5:AX$25) -> 0
M32: =Validation!$A3 -> Program Support | N32: =SUMIF($C$5:$C$25,M32,N$5:N$25) -> 0 | Q32: =Validation!$A3 -> Program Support | R32: =SUMIF($C$5:$C$25,Q32,R$5:R$25) -> 0 | U32: =Validation!$A3 -> Program Support | V32: =SUMIF($C$5:$C$25,U32,$V$5:V24) -> 0 | Y32: =Validation!$A3 -> Program Support | Z32: =SUMIF($C$5:$C$25,Y32,Z$5:Z$25) -> 0 | AC32: =Validation!$A3 -> Program Support | AD32: =SUMIF($C$5:$C$25,AC32,AD$5:AD$25) -> 0 | AG32: =Validation!$A3 -> Program Support | AH32: =SUMIF($C$5:$C$25,AG32,AH$5:AH$25) -> 0 | AK32: =Validation!$A3 -> Program Support | AL32: =SUMIF($C$5:$C$25,AK32,AL$5:AL$25) -> 0 | AO32: =Validation!$A3 -> Program Support | AP32: =SUMIF($C$5:$C$25,AO32,AP$5:AP$25) -> 0 | AS32: =Validation!$A3 -> Program Support | AT32: =SUMIF($C$5:$C$25,AS32,AT$5:AT$25) -> 0 | AW32: =Validation!$A3 -> Program Support | AX32: =SUMIF($C$5:$C$25,AW32,AX$5:AX$25) -> 0
M33: =Validation!$A4 -> Program Marketing | N33: =SUMIF($C$5:$C$25,M33,N$5:N$25) -> 0 | Q33: =Validation!$A4 -> Program Marketing | R33: =SUMIF($C$5:$C$25,Q33,R$5:R$25) -> 0 | U33: =Validation!$A4 -> Program Marketing | V33: =SUMIF($C$5:$C$25,U33,$V$5:V24) -> 0 | Y33: =Validation!$A4 -> Program Marketing | Z33: =SUMIF($C$5:$C$25,Y33,Z$5:Z$25) -> 0 | AC33: =Validation!$A4 -> Program Marketing | AD33: =SUMIF($C$5:$C$25,AC33,AD$5:AD$25) -> 0 | AG33: =Validation!$A4 -> Program Marketing | AH33: =SUMIF($C$5:$C$25,AG33,AH$5:AH$25) -> 0 | AK33: =Validation!$A4 -> Program Marketing | AL33: =SUMIF($C$5:$C$25,AK33,AL$5:AL$25) -> 0 | AO33: =Validation!$A4 -> Program Marketing | AP33: =SUMIF($C$5:$C$25,AO33,AP$5:AP$25) -> 0 | AS33: =Validation!$A4 -> Program Marketing | AT33: =SUMIF($C$5:$C$25,AS33,AT$5:AT$25) -> 0 | AW33: =Validation!$A4 -> Program Marketing | AX33: =SUMIF($C$5:$C$25,AW33,AX$5:AX$25) -> 0
M34: =Validation!$A5 -> Program Development - Startup (DCS / Campus) | N34: =SUMIF($C$5:$C$25,M34,N$5:N$25) -> 0 | Q34: =Validation!$A5 -> Program Development - Startup (DCS / Campus) | R34: =SUMIF($C$5:$C$25,Q34,R$5:R$25) -> 0 | U34: =Validation!$A5 -> Program Development - Startup (DCS / Campus) | V34: =SUMIF($C$5:$C$25,U34,$V$5:V24) -> 0 | Y34: =Validation!$A5 -> Program Development - Startup (DCS / Campus) | Z34: =SUMIF($C$5:$C$25,Y34,Z$5:Z$25) -> 0 | AC34: =Validation!$A5 -> Program Development - Startup (DCS / Campus) | AD34: =SUMIF($C$5:$C$25,AC34,AD$5:AD$25) -> 0 | AG34: =Validation!$A5 -> Program Development - Startup (DCS / Campus) | AH34: =SUMIF($C$5:$C$25,AG34,AH$5:AH$25) -> 0 | AK34: =Validation!$A5 -> Program Development - Startup (DCS / Campus) | AL34: =SUMIF($C$5:$C$25,AK34,AL$5:AL$25) -> 0 | AO34: =Validation!$A5 -> Program Development - Startup (DCS / Campus) | AP34: =SUMIF($C$5:$C$25,AO34,AP$5:AP$25) -> 0 | AS34: =Validation!$A5 -> Program Development - Startup (DCS / Campus) | AT34: =SUMIF($C$5:$C$25,AS34,AT$5:AT$25) -> 0 | AW34: =Validation!$A5 -> Program Development - Startup (DCS / Campus) | AX34: =SUMIF($C$5:$C$25,AW34,AX$5:AX$25) -> 0
M35: =Validation!$A6 -> Program Development - Startup | N35: =SUMIF($C$5:$C$25,M35,N$5:N$25) -> 0 | Q35: =Validation!$A6 -> Program Development - Startup | R35: =SUMIF($C$5:$C$25,Q35,R$5:R$25) -> 0 | U35: =Validation!$A6 -> Program Development - Startup | V35: =SUMIF($C$5:$C$25,U35,$V$5:V24) -> 0 | Y35: =Validation!$A6 -> Program Development - Startup | Z35: =SUMIF($C$5:$C$25,Y35,Z$5:Z$25) -> 0 | AC35: =Validation!$A6 -> Program Development - Startup | AD35: =SUMIF($C$5:$C$25,AC35,AD$5:AD$25) -> 0 | AG35: =Validation!$A6 -> Program Development - Startup | AH35: =SUMIF($C$5:$C$25,AG35,AH$5:AH$25) -> 0 | AK35: =Validation!$A6 -> Program Development - Startup | AL35: =SUMIF($C$5:$C$25,AK35,AL$5:AL$25) -> 0 | AO35: =Validation!$A6 -> Program Development - Startup | AP35: =SUMIF($C$5:$C$25,AO35,AP$5:AP$25) -> 0 | AS35: =Validation!$A6 -> Program Development - Startup | AT35: =SUMIF($C$5:$C$25,AS35,AT$5:AT$25) -> 0 | AW35: =Validation!$A6 -> Program Development - Startup | AX35: =SUMIF($C$5:$C$25,AW35,AX$5:AX$25) -> 0
R38: ='131 Program Summary'!C22 -> 2020 | S38: ='131 Program Summary'!D22 -> 2021 | T38: ='131 Program Summary'!E22 -> 2022 | U38: ='131 Program Summary'!F22 -> 2023 | V38: ='131 Program Summary'!G22 -> 2024 | W38: ='131 Program Summary'!H22 -> 2025 | X38: ='131 Program Summary'!I22 -> 2026 | Y38: ='131 Program Summary'!J22 -> 2027 | Z38: ='131 Program Summary'!K22 -> 2028 | AA38: ='131 Program Summary'!L22 -> 2029
Q39: =M31 -> Instructional | R39: 0 | S39: =R31 -> 0 | T39: =V31 -> 0 | U39: =Z31 -> 0 | V39: =AD31 -> 0 | W39: =AH31 -> 0 | X39: =AL31 -> 0 | Y39: =AP31 -> 0 | Z39: =AT31 -> 0 | AA39: =AX31 -> 0
Q40: Program Support | R40: 0 | S40: =R32 -> 0 | T40: =V32 -> 0 | U40: =Z32 -> 0 | V40: =AD32 -> 0 | W40: =AH32 -> 0 | X40: =AL32 -> 0 | Y40: =AP32 -> 0 | Z40: =AT32 -> 0 | AA40: =AX32 -> 0
Q41: Program Marketing | R41: 0 | S41: =R33 -> 0 | T41: =V33 -> 0 | U41: =Z33 -> 0 | V41: =AD33 -> 0 | W41: =AH33 -> 0 | X41: =AL33 -> 0 | Y41: =AP33 -> 0 | Z41: =AT33 -> 0 | AA41: =AX33 -> 0
Q42: Program Development - Startup (DCS / Campus) | R42: 0 | S42: =R34 -> 0 | T42: =V34 -> 0 | U42: =Z34 -> 0 | V42: =AD34 -> 0 | W42: =AH34 -> 0 | X42: =AL34 -> 0 | Y42: =AP34 -> 0 | Z42: =AT34 -> 0 | AA42: =AX34 -> 0
Q43: Program Development - Startup | R43: 0 | S43: =R35 -> 0 | T43: =V35 -> 0 | U43: =Z35 -> 0 | V43: =AD35 -> 0 | W43: =AH35 -> 0 | X43: =AL35 -> 0 | Y43: =AP35 -> 0 | Z43: =AT35 -> 0 | AA43: =AX35 -> 0
B44: Types of Employees and Fringe Rates (illustrative)
B45: Faculty / Academic Staff | C45: 0.3333
B46: Student hourly | C46: 0.03
B47: RA / PA / TA | C47: 0.21
B48: Unversity Staff | C48: 0.425
B50: Fringe rates from RSP pool
B51: Note - you will want to consider implications of the individual employees (since the 131 program bears actual fringe)
B52: Note - summer fringe expense will be less than this rate

Sheet Salaries & Wages - old (hidden)
A1: Worksheet for Salaries & Wages
B2: Note: Open + for each year to fill in additional data
A3: Name | B3: Title | C3: Type | D3: Employee Type | E3: Role Description (free form) | F3: ='131 Program Summary'!C22 -> 2020 | G3: Pay Basis | H3: Months | I3: Effort | J3: Requested Salary | K3: Fringe Rate | L3: Fringe Benefit | M3: Total Cost | N3: ='131 Program Summary'!D22 -> 2021 | O3: Pay Basis | P3: Months | Q3: Effort | R3: Requested Salary | S3: Fringe Rate | T3: Fringe Benefit | U3: Total Cost | V3: ='131 Program Summary'!E22 -> 2022 | W3: Pay Basis | X3: Months | Y3: Effort | Z3: Requested Salary | AA3: Fringe Rate | AB3: Fringe Benefit | AC3: Total Cost | AD3: ='131 Program Summary'!F22 -> 2023 | AE3: Pay Basis | AF3: Months | AG3: Effort | AH3: Requested Salary | AI3: Fringe Rate | AJ3: Fringe Benefit | AK3: Total Cost | AL3: ='131 Program Summary'!G22 -> 2024 | AM3: Pay Basis | AN3: Months | AO3: Effort | AP3: Requested Salary | AQ3: Fringe Rate | AR3: Fringe Benefit | AS3: Total Cost | AT3: ='131 Program Summary'!H22 -> 2025 | AU3: Pay Basis | AV3: Months | AW3: Effort | AX3: Requested Salary | AY3: Fringe Rate | AZ3: Fringe Benefit | BA3: Total Cost | BB3: ='131 Program Summary'!I22 -> 2026 | BC3: Pay Basis | BD3: Months | BE3: Effort | BF3: Requested Salary | BG3: Fringe Rate | BH3: Fringe Benefit | BI3: Total Cost | BJ3: ='131 Program Summary'!J22 -> 2027 | BK3: Pay Basis | BL3: Months | BM3: Effort | BN3: Requested Salary | BO3: Fringe Rate | BP3: Fringe Benefit | BQ3: Total Cost | BR3: ='131 Program Summary'!K22 -> 2028 | BS3: Pay Basis | BT3: Months | BU3: Effort | BV3: Requested Salary | BW3: Fringe Rate | BX3: Fringe Benefit | BY3: Total Cost | BZ3: ='131 Program Summary'!L22 -> 2029 | CA3: Pay Basis | CB3: Months | CC3: Effort | CD3: Requested Salary | CE3: Fringe Rate | CF3: Fringe Benefit | CG3: Total Cost
A5: TBN | B5: Faculty | C5: Program Development - Startup (DCS / Campus) | D5: Faculty / Academic Staff | F5: 100000 | G5: Annual (A basis) | H5: 12 | I5: 1 | J5: =ROUND((IF(G5="Hourly (H basis)",F5,(F5/IF(G5="Annual (A basis)",12,9)*H5*I5))),0) -> 100000 | K5: =IFERROR(VLOOKUP($D5,$B$45:$C$47,2),"") -> 0.387 | L5: =IFERROR(ROUND((K5*J5),0),"") -> 38700 | M5: =SUM(J5,L5) -> 138700 | N5: 100000 | O5: Annual (A basis) | P5: 12 | Q5: 1 | R5: =ROUND((IF(O5="Hourly (H basis)",N5,(N5/IF(O5="Annual (A basis)",12,9)*P5*Q5))),0) -> 100000 | S5: =IFERROR(VLOOKUP($D5,$B$45:$C$47,2),"") -> 0.387 | T5: =IFERROR(ROUND((S5*R5),0),"") -> 38700 | U5: =SUM(R5,T5) -> 138700 | V5: 0 | W5: Annual (A basis) | X5: 12 | Y5: 1 | Z5: =ROUND((IF(W5="Hourly (H basis)",V5,(V5/IF(W5="Annual (A basis)",12,9)*X5*Y5))),0) -> 0 | AA5: =IFERROR(VLOOKUP($D5,$B$45:$C$47,2),"") -> 0.387 | AB5: =IFERROR(ROUND((AA5*Z5),0),"") -> 0 | AC5: =SUM(Z5,AB5) -> 0 | AE5: Annual (A basis) | AF5: 12 | AG5: 1 | AH5: =ROUND((IF(AE5="Hourly (H basis)",AD5,(AD5/IF(AE5="Annual (A basis)",12,9)*AF5*AG5))),0) -> 0 | AI5: =IFERROR(VLOOKUP($D5,$B$45:$C$47,2),"") -> 0.387 | AJ5: =IFERROR(ROUND((AI5*AH5),0),"") -> 0 | AK5: =SUM(AH5,AJ5) -> 0 | AM5: Annual (A basis) | AN5: 12 | AO5: 1 | AP5: =ROUND((IF(AM5="Hourly (H basis)",AL5,(AL5/IF(AM5="Annual (A basis)",12,9)*AN5*AO5))),0) -> 0 | AQ5: =IFERROR(VLOOKUP($D5,$B$45:$C$47,2),"") -> 0.387 | AR5: =IFERROR(ROUND((AQ5*AP5),0),"") -> 0 | AS5: =SUM(AP5,AR5) -> 0 | AU5: Annual (A basis) | AV5: 12 | AW5: 1 | AX5: =ROUND((IF(AU5="Hourly (H basis)",AT5,(AT5/IF(AU5="Annual (A basis)",12,9)*AV5*AW5))),0) -> 0 | AY5: =IFERROR(VLOOKUP($D5,$B$45:$C$47,2),"") -> 0.387 | AZ5: =IFERROR(ROUND((AY5*AX5),0),"") -> 0 | BA5: =SUM(AX5,AZ5) -> 0 | BC5: Annual (A basis) | BD5: 12 | BE5: 1 | BF5: =ROUND((IF(BC5="Hourly (H basis)",BB5,(BB5/IF(BC5="Annual (A basis)",12,9)*BD5*BE5))),0) -> 0 | BG5: =IFERROR(VLOOKUP($D5,$B$45:$C$47,2),"") -> 0.387 | BH5: =IFERROR(ROUND((BG5*BF5),0),"") -> 0 | BI5: =SUM(BF5,BH5) -> 0 | BK5: Annual (A basis) | BL5: 12 | BM5: 1 | BN5: =ROUND((IF(BK5="Hourly (H basis)",BJ5,(BJ5/IF(BK5="Annual (A basis)",12,9)*BL5*BM5))),0) -> 0 | BO5: =IFERROR(VLOOKUP($D5,$B$45:$C$47,2),"") -> 0.387 | BP5: =IFERROR(ROUND((BO5*BN5),0),"") -> 0 | BQ5: =SUM(BN5,BP5) -> 0 | BS5: Annual (A basis) | BT5: 12 | BU5: 1 | BV5: =ROUND((IF(BS5="Hourly (H basis)",BR5,(BR5/IF(BS5="Annual (A basis)",12,9)*BT5*BU5))),0) -> 0 | BW5: =IFERROR(VLOOKUP($D5,$B$45:$C$47,2),"") -> 0.387 | BX5: =IFERROR(ROUND((BW5*BV5),0),"") -> 0 | BY5: =SUM(BV5,BX5) -> 0 | CA5: Annual (A basis) | CB5: 12 | CC5: 1 | CD5: =ROUND((IF(CA5="Hourly (H basis)",BZ5,(BZ5/IF(CA5="Annual (A basis)",12,9)*CB5*CC5))),0) -> 0 | CE5: =IFERROR(VLOOKUP($D5,$B$45:$C$47,2),"") -> 0.387 | CF5: =IFERROR(ROUND((CE5*CD5),0),"") -> 0 | CG5: =SUM(CD5,CF5) -> 0 | CI5: Request 3 years
A6: TBN | B6: Faculty | C6: Program Development - Startup (DCS / Campus) | D6: Faculty / Academic Staff | G6: Annual (A basis) | H6: 12 | I6: 1 | J6: 0 | K6: 0.387 | L6: =IFERROR(ROUND((K6*J6),0),"") -> 0 | M6: =SUM(J6,L6) -> 0 | N6: 100000 | O6: Annual (A basis) | P6: 12 | Q6: 1 | R6: 100000 | S6: 0.387 | T6: =IFERROR(ROUND((S6*R6),0),"") -> 38700 | U6: 138700 | V6: 50000 | W6: Annual (A basis) | X6: 12 | Y6: 1 | Z6: 50000 | AA6: 0.387 | AB6: =IFERROR(ROUND((AA6*Z6),0),"") -> 19350 | AC6: 69350 | AE6: Annual (A basis) | AF6: 12 | AG6: 1 | AH6: 0 | AI6: 0.387 | AJ6: =IFERROR(ROUND((AI6*AH6),0),"") -> 0 | AK6: 0 | AM6: Annual (A basis) | AN6: 12 | AO6: 1 | AP6: =ROUND((IF(AM6="Hourly (H basis)",AL6,(AL6/IF(AM6="Annual (A basis)",12,9)*AN6*AO6))),0) -> 0 | AQ6: 0.387 | AR6: =IFERROR(ROUND((AQ6*AP6),0),"") -> 0 | AS6: 0 | AU6: Annual (A basis) | AV6: 12 | AW6: 1 | AX6: 0 | AY6: 0.387 | AZ6: =IFERROR(ROUND((AY6*AX6),0),"") -> 0 | BA6: 0 | BC6: Annual (A basis) | BD6: 12 | BE6: 1 | BF6: 0 | BG6: 0.387 | BH6: =IFERROR(ROUND((BG6*BF6),0),"") -> 0 | BI6: 0 | BK6: Annual (A basis) | BL6: 12 | BM6: 1 | BN6: 0 | BO6: 0.387 | BP6: =IFERROR(ROUND((BO6*BN6),0),"") -> 0 | BQ6: 0 | BS6: Annual (A basis) | BT6: 12 | BU6: 1 | BV6: 0 | BW6: 0.387 | BX6: =IFERROR(ROUND((BW6*BV6),0),"") -> 0 | BY6: 0 | CA6: Annual (A basis) | CB6: 12 | CC6: 1 | CD6: 0 | CE6: 0.387 | CF6: =IFERROR(ROUND((CE6*CD6),0),"") -> 0 | CG6: 0 | CI6: Request 2 years
A7: TBN | B7: Faculty associate | C7: Instructional | D7: Faculty / Academic Staff | F7: 0 | G7: Annual (A basis) | H7: 12 | I7: 1 | J7: =ROUND((IF(G7="Hourly (H basis)",F7,(F7/IF(G7="Annual (A basis)",12,9)*H7*I7))),0) -> 0 | K7: 0.387 | L7: 0 | M7: 0 | N7: 80000 | O7: Annual (A basis) | P7: 12 | Q7: 1 | R7: =ROUND((IF(O7="Hourly (H basis)",N7,(N7/IF(O7="Annual (A basis)",12,9)*P7*Q7))),0) -> 80000 | S7: 0.387 | T7: 30960 | U7: =SUM(R7,T7) -> 110960 | V7: 80000 | W7: Annual (A basis) | X7: 12 | Y7: 1 | Z7: =ROUND((IF(W7="Hourly (H basis)",V7,(V7/IF(W7="Annual (A basis)",12,9)*X7*Y7))),0) -> 80000 | AA7: 0.387 | AB7: 30960 | AC7: =SUM(Z7,AB7) -> 110960 | AD7: 80000 | AE7: Annual (A basis) | AF7: 12 | AG7: 1 | AH7: =ROUND((IF(AE7="Hourly (H basis)",AD7,(AD7/IF(AE7="Annual (A basis)",12,9)*AF7*AG7))),0) -> 80000 | AI7: 0.387 | AJ7: 30960 | AK7: =SUM(AH7,AJ7) -> 110960 | AL7: 80000 | AM7: Annual (A basis) | AN7: 12 | AO7: 1 | AP7: =ROUND((IF(AM7="Hourly (H basis)",AL7,(AL7/IF(AM7="Annual (A basis)",12,9)*AN7*AO7))),0) -> 80000 | AQ7: 0.387 | AR7: 30960 | AS7: =SUM(AP7,AR7) -> 110960 | AT7: 80000 | AU7: Annual (A basis) | AV7: 12 | AW7: 1 | AX7: =ROUND((IF(AU7="Hourly (H basis)",AT7,(AT7/IF(AU7="Annual (A basis)",12,9)*AV7*AW7))),0) -> 80000 | AY7: 0.387 | AZ7: 30960 | BA7: =SUM(AX7,AZ7) -> 110960 | BB7: 80000 | BC7: Annual (A basis) | BD7: 12 | BE7: 1 | BF7: =ROUND((IF(BC7="Hourly (H basis)",BB7,(BB7/IF(BC7="Annual (A basis)",12,9)*BD7*BE7))),0) -> 80000 | BG7: 0.387 | BH7: 30960 | BI7: =SUM(BF7,BH7) -> 110960 | BJ7: 80000 | BK7: Annual (A basis) | BL7: 12 | BM7: 1 | BN7: =ROUND((IF(BK7="Hourly (H basis)",BJ7,(BJ7/IF(BK7="Annual (A basis)",12,9)*BL7*BM7))),0) -> 80000 | BO7: 0.387 | BP7: 30960 | BQ7: =SUM(BN7,BP7) -> 110960 | BR7: 80000 | BS7: Annual (A basis) | BT7: 12 | BU7: 1 | BV7: =ROUND((IF(BS7="Hourly (H basis)",BR7,(BR7/IF(BS7="Annual (A basis)",12,9)*BT7*BU7))),0) -> 80000 | BW7: 0.387 | BX7: 30960 | BY7: =SUM(BV7,BX7) -> 110960 | BZ7: 80000 | CA7: Annual (A basis) | CB7: 12 | CC7: 1 | CD7: 80000 | CE7: 0.387 | CF7: 30960 | CG7: =SUM(CD7,CF7) -> 110960
A8: TBN | B8: Teaching Assistant | C8: Program Development - Startup (DCS / Campus) | D8: RA / PA / TA | F8: 0 | G8: Annual (A basis) | H8: 12 | I8: 0.5 | J8: =ROUND((IF(G8="Hourly (H basis)",F8,(F8/IF(G8="Annual (A basis)",12,9)*H8*I8))),0) -> 0 | K8: 0.387 | L8: 0 | M8: =SUM(J8,L8) -> 0 | N8: 0 | O8: Annual (A basis) | P8: 12 | Q8: 0.5 | R8: =ROUND((IF(O8="Hourly (H basis)",N8,(N8/IF(O8="Annual (A basis)",12,9)*P8*Q8))),0) -> 0 | S8: 0.387 | T8: 0 | U8: =SUM(R8,T8) -> 0 | V8: 0 | W8: Annual (A basis) | X8: 12 | Y8: 0.5 | Z8: =ROUND((IF(W8="Hourly (H basis)",V8,(V8/IF(W8="Annual (A basis)",12,9)*X8*Y8))),0) -> 0 | AA8: 0.387 | AB8: 0 | AC8: =SUM(Z8,AB8) -> 0 | AE8: Annual (A basis) | AF8: 12 | AG8: 0.5 | AH8: =ROUND((IF(AE8="Hourly (H basis)",AD8,(AD8/IF(AE8="Annual (A basis)",12,9)*AF8*AG8))),0) -> 0 | AI8: 0.387 | AJ8: 0 | AK8: =SUM(AH8,AJ8) -> 0 | AM8: Annual (A basis) | AN8: 12 | AO8: 1 | AP8: =ROUND((IF(AM8="Hourly (H basis)",AL8,(AL8/IF(AM8="Annual (A basis)",12,9)*AN8*AO8))),0) -> 0 | AQ8: 0.387 | AR8: 0 | AS8: =SUM(AP8,AR8) -> 0 | AU8: Annual (A basis) | AV8: 12 | AW8: 0.5 | AX8: =ROUND((IF(AU8="Hourly (H basis)",AT8,(AT8/IF(AU8="Annual (A basis)",12,9)*AV8*AW8))),0) -> 0 | AY8: 0.387 | AZ8: 0 | BA8: =SUM(AX8,AZ8) -> 0 | BC8: Annual (A basis) | BD8: 12 | BE8: 0.5 | BF8: =ROUND((IF(BC8="Hourly (H basis)",BB8,(BB8/IF(BC8="Annual (A basis)",12,9)*BD8*BE8))),0) -> 0 | BG8: 0.387 | BH8: 0 | BI8: =SUM(BF8,BH8) -> 0 | BK8: Annual (A basis) | BL8: 12 | BM8: 1 | BN8: =ROUND((IF(BK8="Hourly (H basis)",BJ8,(BJ8/IF(BK8="Annual (A basis)",12,9)*BL8*BM8))),0) -> 0 | BO8: 0.387 | BP8: 0 | BQ8: =SUM(BN8,BP8) -> 0 | BS8: Annual (A basis) | BT8: 12 | BU8: 1 | BV8: =ROUND((IF(BS8="Hourly (H basis)",BR8,(BR8/IF(BS8="Annual (A basis)",12,9)*BT8*BU8))),0) -> 0 | BW8: 0.387 | BX8: 0 | BY8: =SUM(BV8,BX8) -> 0 | CA8: Annual (A basis) | CB8: 12 | CC8: 1 | CD8: 0 | CE8: 0.387 | CF8: 0 | CG8: =SUM(CD8,CF8) -> 0 | CI8: Request 2 years
A9: TBN | B9: Program Associate | C9: Program Development - Startup (DCS / Campus) | D9: Faculty / Academic Staff | F9: 40000 | G9: Annual (A basis) | H9: 12 | I9: 1 | J9: 40000 | K9: 0.387 | L9: 15480 | M9: 55480 | O9: Annual (A basis) | P9: 12 | Q9: 1 | R9: =ROUND((IF(O9="Hourly (H basis)",N9,(N9/IF(O9="Annual (A basis)",12,9)*P9*Q9))),0) -> 0 | S9: 0.387 | T9: 0 | U9: 0 | W9: Annual (A basis) | X9: 12 | Y9: 1 | Z9: =ROUND((IF(W9="Hourly (H basis)",V9,(V9/IF(W9="Annual (A basis)",12,9)*X9*Y9))),0) -> 0 | AA9: 0.387 | AB9: 0 | AC9: 0 | AE9: Annual (A basis) | AF9: 12 | AG9: 1 | AH9: =ROUND((IF(AE9="Hourly (H basis)",AD9,(AD9/IF(AE9="Annual (A basis)",12,9)*AF9*AG9))),0) -> 0 | AI9: 0.387 | AJ9: 0 | AK9: 0 | AM9: Annual (A basis) | AN9: 12 | AO9: 1 | AP9: =ROUND((IF(AM9="Hourly (H basis)",AL9,(AL9/IF(AM9="Annual (A basis)",12,9)*AN9*AO9))),0) -> 0 | AQ9: 0.387 | AR9: 0 | AS9: 0 | AU9: Annual (A basis) | AV9: 12 | AW9: 1 | AX9: =ROUND((IF(AU9="Hourly (H basis)",AT9,(AT9/IF(AU9="Annual (A basis)",12,9)*AV9*AW9))),0) -> 0 | AY9: 0.387 | AZ9: 0 | BA9: 0 | BC9: Annual (A basis) | BD9: 12 | BE9: 1 | BF9: =ROUND((IF(BC9="Hourly (H basis)",BB9,(BB9/IF(BC9="Annual (A basis)",12,9)*BD9*BE9))),0) -> 0 | BG9: 0.387 | BH9: 0 | BI9: 0 | BK9: Annual (A basis) | BL9: 12 | BM9: 1 | BN9: =ROUND((IF(BK9="Hourly (H basis)",BJ9,(BJ9/IF(BK9="Annual (A basis)",12,9)*BL9*BM9))),0) -> 0 | BO9: 0.387 | BP9: 0 | BQ9: 0 | BS9: Annual (A basis) | BT9: 12 | BU9: 1 | BV9: =ROUND((IF(BS9="Hourly (H basis)",BR9,(BR9/IF(BS9="Annual (A basis)",12,9)*BT9*BU9))),0) -> 0 | BW9: 0.387 | BX9: 0 | BY9: 0 | CA9: Annual (A basis) | CB9: 12 | CC9: 1 | CD9: =ROUND((IF(CA9="Hourly (H basis)",BZ9,(BZ9/IF(CA9="Annual (A basis)",12,9)*CB9*CC9))),0) -> 0 | CE9: 0.387 | CF9: 0 | CG9: 0
A10: TBN | B10: University Staff | C10: Program Support | D10: Unversity Staff | F10: 33886 | G10: Annual (A basis) | H10: 12 | I10: 1 | J10: 33886 | K10: =IFERROR(VLOOKUP($D10,$B$45:$C$47,2),"") -> 0.387 | L10: 13114 | M10: 47000 | N10: 33886 | O10: Annual (A basis) | P10: 12 | Q10: 1 | R10: 33886 | S10: 0.387 | T10: 13114 | U10: 47000 | V10: 33886 | W10: Annual (A basis) | X10: 12 | Y10: 1 | Z10: 33886 | AA10: 0.387 | AB10: 13114 | AC10: 47000 | AD10: 33886 | AE10: Annual (A basis) | AF10: 12 | AG10: 1 | AH10: 33886 | AI10: 0.387 | AJ10: 13114 | AK10: 47000 | AL10: 33886 | AM10: Annual (A basis) | AN10: 12 | AO10: 1 | AP10: 33886 | AQ10: 0.387 | AR10: 13114 | AS10: 47000 | AT10: 33886 | AU10: Annual (A basis) | AV10: 12 | AW10: 1 | AX10: 33886 | AY10: 0.387 | AZ10: 13114 | BA10: 47000 | BB10: 33886 | BC10: Annual (A basis) | BD10: 12 | BE10: 1 | BF10: 33886 | BG10: 0.387 | BH10: 13114 | BI10: 47000 | BJ10: 33886 | BK10: Annual (A basis) | BL10: 12 | BM10: 1 | BN10: 33886 | BO10: 0.387 | BP10: 13114 | BQ10: 47000 | BR10: 33886 | BS10: Annual (A basis) | BT10: 12 | BU10: 1 | BV10: 33886 | BW10: 0.387 | BX10: 13114 | BY10: 47000 | BZ10: 33886 | CA10: Annual (A basis) | CB10: 12 | CC10: 1 | CD10: 33886 | CE10: 0.387 | CF10: 13114 | CG10: 47000
A11: TBN | B11: Program Associate | C11: Program Support | D11: Faculty / Academic Staff | G11: Annual (A basis) | H11: 12 | I11: 1 | J11: =ROUND((IF(G11="Hourly (H basis)",F11,(F11/IF(G11="Annual (A basis)",12,9)*H11*I11))),0) -> 0 | K11: =IFERROR(VLOOKUP($D11,$B$45:$C$47,2),"") -> 0.387 | L11: =IFERROR(ROUND((K11*J11),0),"") -> 0 | M11: =SUM(J11,L11) -> 0 | N11: 40000 | O11: Annual (A basis) | P11: 12 | Q11: 1 | R11: 40000 | S11: 0.387 | T11: 15480 | U11: 55480 | V11: 40000 | W11: Annual (A basis) | X11: 12 | Y11: 1 | Z11: =ROUND((IF(W11="Hourly (H basis)",V11,(V11/IF(W11="Annual (A basis)",12,9)*X11*Y11))),0) -> 40000 | AA11: 0.387 | AB11: =IFERROR(ROUND((AA11*Z11),0),"") -> 15480 | AC11: =SUM(Z11,AB11) -> 55480 | AD11: 40000 | AE11: Annual (A basis) | AF11: 12 | AG11: 1 | AH11: =ROUND((IF(AE11="Hourly (H basis)",AD11,(AD11/IF(AE11="Annual (A basis)",12,9)*AF11*AG11))),0) -> 40000 | AI11: 0.387 | AJ11: =IFERROR(ROUND((AI11*AH11),0),"") -> 15480 | AK11: =SUM(AH11,AJ11) -> 55480 | AL11: 40000 | AM11: Annual (A basis) | AN11: 12 | AO11: 1 | AP11: =ROUND((IF(AM11="Hourly (H basis)",AL11,(AL11/IF(AM11="Annual (A basis)",12,9)*AN11*AO11))),0) -> 40000 | AQ11: 0.387 | AR11: =IFERROR(ROUND((AQ11*AP11),0),"") -> 15480 | AS11: =SUM(AP11,AR11) -> 55480 | AT11: 40000 | AU11: Annual (A basis) | AV11: 12 | AW11: 1 | AX11: =ROUND((IF(AU11="Hourly (H basis)",AT11,(AT11/IF(AU11="Annual (A basis)",12,9)*AV11*AW11))),0) -> 40000 | AY11: 0.387 | AZ11: =IFERROR(ROUND((AY11*AX11),0),"") -> 15480 | BA11: =SUM(AX11,AZ11) -> 55480 | BB11: 40000 | BC11: Annual (A basis) | BD11: 12 | BE11: 1 | BF11: =ROUND((IF(BC11="Hourly (H basis)",BB11,(BB11/IF(BC11="Annual (A basis)",12,9)*BD11*BE11))),0) -> 40000 | BG11: 0.387 | BH11: =IFERROR(ROUND((BG11*BF11),0),"") -> 15480 | BI11: =SUM(BF11,BH11) -> 55480 | BJ11: 40000 | BK11: Annual (A basis) | BL11: 12 | BM11: 1 | BN11: =ROUND((IF(BK11="Hourly (H basis)",BJ11,(BJ11/IF(BK11="Annual (A basis)",12,9)*BL11*BM11))),0) -> 40000 | BO11: 0.387 | BP11: =IFERROR(ROUND((BO11*BN11),0),"") -> 15480 | BQ11: =SUM(BN11,BP11) -> 55480 | BR11: 40000 | BS11: Annual (A basis) | BT11: 12 | BU11: 1 | BV11: =ROUND((IF(BS11="Hourly (H basis)",BR11,(BR11/IF(BS11="Annual (A basis)",12,9)*BT11*BU11))),0) -> 40000 | BW11: 0.387 | BX11: =IFERROR(ROUND((BW11*BV11),0),"") -> 15480 | BY11: =SUM(BV11,BX11) -> 55480 | BZ11: 40000 | CA11: Annual (A basis) | CB11: 12 | CC11: 1 | CD11: =ROUND((IF(CA11="Hourly (H basis)",BZ11,(BZ11/IF(CA11="Annual (A basis)",12,9)*CB11*CC11))),0) -> 40000 | CE11: 0.387 | CF11: =IFERROR(ROUND((CE11*CD11),0),"") -> 15480 | CG11: =SUM(CD11,CF11) -> 55480
A12: TBN | B12: Faculty | C12: Instructional | D12: Faculty / Academic Staff | G12: Annual (A basis) | H12: 12 | I12: 1 | J12: 0 | K12: 0.387 | L12: 0 | M12: 0 | O12: Annual (A basis) | P12: 12 | Q12: 1 | R12: 0 | S12: 0.387 | T12: 0 | U12: 0 | V12: 100000 | W12: Annual (A basis) | X12: 12 | Y12: 1 | Z12: 100000 | AA12: 0.387 | AB12: 38700 | AC12: 138700 | AD12: 100000 | AE12: Annual (A basis) | AF12: 12 | AG12: 1 | AH12: 100000 | AI12: 0.387 | AJ12: 38700 | AK12: 138700 | AL12: 100000 | AM12: Annual (A basis) | AN12: 12 | AO12: 1 | AP12: 100000 | AQ12: 0.387 | AR12: 38700 | AS12: 138700 | AT12: 100000 | AU12: Annual (A basis) | AV12: 12 | AW12: 1 | AX12: 100000 | AY12: 0.387 | AZ12: 38700 | BA12: 138700 | BB12: 100000 | BC12: Annual (A basis) | BD12: 12 | BE12: 1 | BF12: 100000 | BG12: 0.387 | BH12: 38700 | BI12: 138700 | BJ12: 100000 | BK12: Annual (A basis) | BL12: 12 | BM12: 1 | BN12: 100000 | BO12: 0.387 | BP12: 38700 | BQ12: 138700 | BR12: 100000 | BS12: Annual (A basis) | BT12: 12 | BU12: 1 | BV12: 100000 | BW12: 0.387 | BX12: 38700 | BY12: 138700 | BZ12: 100000 | CA12: Annual (A basis) | CB12: 12 | CC12: 1 | CD12: 100000 | CE12: 0.387 | CF12: 38700 | CG12: 138700
A13: TBN | B13: Faculty | C13: Instructional | D13: Faculty / Academic Staff | G13: Annual (A basis) | H13: 12 | I13: 1 | J13: 0 | K13: 0.387 | L13: 0 | M13: 0 | O13: Annual (A basis) | P13: 12 | Q13: 1 | R13: 0 | S13: 0.387 | T13: 0 | U13: 0 | V13: 50000 | W13: Annual (A basis) | X13: 12 | Y13: 1 | Z13: 50000 | AA13: 0.387 | AB13: 19350 | AC13: 69350 | AD13: 100000 | AE13: Annual (A basis) | AF13: 12 | AG13: 1 | AH13: 100000 | AI13: 0.387 | AJ13: 38700 | AK13: 138700 | AL13: 100000 | AM13: Annual (A basis) | AN13: 12 | AO13: 1 | AP13: 100000 | AQ13: 0.387 | AR13: 38700 | AS13: 138700 | AT13: 100000 | AU13: Annual (A basis) | AV13: 12 | AW13: 1 | AX13: 100000 | AY13: 0.387 | AZ13: 38700 | BA13: 138700 | BB13: 100000 | BC13: Annual (A basis) | BD13: 12 | BE13: 1 | BF13: 100000 | BG13: 0.387 | BH13: 38700 | BI13: 138700 | BJ13: 100000 | BK13: Annual (A basis) | BL13: 12 | BM13: 1 | BN13: 100000 | BO13: 0.387 | BP13: 38700 | BQ13: 138700 | BR13: 100000 | BS13: Annual (A basis) | BT13: 12 | BU13: 1 | BV13: 100000 | BW13: 0.387 | BX13: 38700 | BY13: 138700 | BZ13: 100000 | CA13: Annual (A basis) | CB13: 12 | CC13: 1 | CD13: 100000 | CE13: 0.387 | CF13: 38700 | CG13: 138700
A14: TBN | B14: Teaching Assistant | C14: Instructional | D14: RA / PA / TA | G14: Annual (A basis) | H14: 12 | I14: 0.5 | J14: 0 | K14: 0.387 | L14: 0 | M14: 0 | N14: 52000 | O14: Annual (A basis) | P14: 12 | Q14: 0.5 | R14: =ROUND((IF(O14="Hourly (H basis)",N14,(N14/IF(O14="Annual (A basis)",12,9)*P14*Q14))),0) -> 26000 | S14: 0.387 | T14: =IFERROR(ROUND((S14*R14),0),"") -> 10062 | U14: =SUM(R14,T14) -> 36062 | V14: 52000 | W14: Annual (A basis) | X14: 12 | Y14: 0.5 | Z14: =ROUND((IF(W14="Hourly (H basis)",V14,(V14/IF(W14="Annual (A basis)",12,9)*X14*Y14))),0) -> 26000 | AA14: 0.387 | AB14: =IFERROR(ROUND((AA14*Z14),0),"") -> 10062 | AC14: =SUM(Z14,AB14) -> 36062 | AD14: 52000 | AE14: Annual (A basis) | AF14: 12 | AG14: 0.5 | AH14: =ROUND((IF(AE14="Hourly (H basis)",AD14,(AD14/IF(AE14="Annual (A basis)",12,9)*AF14*AG14))),0) -> 26000 | AI14: 0.387 | AJ14: =IFERROR(ROUND((AI14*AH14),0),"") -> 10062 | AK14: =SUM(AH14,AJ14) -> 36062 | AL14: 52000 | AM14: Annual (A basis) | AN14: 12 | AO14: 0.5 | AP14: =ROUND((IF(AM14="Hourly (H basis)",AL14,(AL14/IF(AM14="Annual (A basis)",12,9)*AN14*AO14))),0) -> 26000 | AQ14: 0.387 | AR14: =IFERROR(ROUND((AQ14*AP14),0),"") -> 10062 | AS14: =SUM(AP14,AR14) -> 36062 | AT14: 52000 | AU14: Annual (A basis) | AV14: 12 | AW14: 0.5 | AX14: =ROUND((IF(AU14="Hourly (H basis)",AT14,(AT14/IF(AU14="Annual (A basis)",12,9)*AV14*AW14))),0) -> 26000 | AY14: 0.387 | AZ14: =IFERROR(ROUND((AY14*AX14),0),"") -> 10062 | BA14: =SUM(AX14,AZ14) -> 36062 | BB14: 52000 | BC14: Annual (A basis) | BD14: 12 | BE14: 0.5 | BF14: =ROUND((IF(BC14="Hourly (H basis)",BB14,(BB14/IF(BC14="Annual (A basis)",12,9)*BD14*BE14))),0) -> 26000 | BG14: 0.387 | BH14: =IFERROR(ROUND((BG14*BF14),0),"") -> 10062 | BI14: =SUM(BF14,BH14) -> 36062 | BJ14: 52000 | BK14: Annual (A basis) | BL14: 12 | BM14: 0.5 | BN14: =ROUND((IF(BK14="Hourly (H basis)",BJ14,(BJ14/IF(BK14="Annual (A basis)",12,9)*BL14*BM14))),0) -> 26000 | BO14: 0.387 | BP14: =IFERROR(ROUND((BO14*BN14),0),"") -> 10062 | BQ14: =SUM(BN14,BP14) -> 36062 | BR14: 52000 | BS14: Annual (A basis) | BT14: 12 | BU14: 0.5 | BV14: =ROUND((IF(BS14="Hourly (H basis)",BR14,(BR14/IF(BS14="Annual (A basis)",12,9)*BT14*BU14))),0) -> 26000 | BW14: 0.387 | BX14: =IFERROR(ROUND((BW14*BV14),0),"") -> 10062 | BY14: 36062 | BZ14: 52000 | CA14: Annual (A basis) | CB14: 12 | CC14: 0.5 | CD14: =ROUND((IF(CA14="Hourly (H basis)",BZ14,(BZ14/IF(CA14="Annual (A basis)",12,9)*CB14*CC14))),0) -> 26000 | CE14: 0.387 | CF14: =IFERROR(ROUND((CE14*CD14),0),"") -> 10062 | CG14: =SUM(CD14,CF14) -> 36062
J15: 0 | M15: 0 | R15: 0 | U15: 0 | Z15: 0 | AC15: 0 | AH15: 0 | AK15: 0 | AP15: 0 | AS15: 0 | AX15: 0 | BA15: 0 | BF15: 0 | BI15: 0 | BN15: 0 | BQ15: 0 | BV15: 0 | BY15: 0 | CD15: 0 | CG15: 0
J16: 0 | M16: 0 | R16: 0 | U16: 0 | Z16: 0 | AC16: 0 | AH16: 0 | AK16: 0 | AP16: 0 | AS16: 0 | AX16: 0 | BA16: 0 | BF16: 0 | BI16: 0 | BN16: 0 | BQ16: 0 | BV16: 0 | BY16: 0 | CD16: 0 | CG16: 0
J17: 0 | M17: 0 | R17: 0 | U17: 0 | Z17: 0 | AC17: 0 | AH17: 0 | AK17: 0 | AP17: 0 | AS17: 0 | AX17: 0 | BA17: 0 | BF17: 0 | BI17: 0 | BN17: 0 | BQ17: 0 | BV17: 0 | BY17: 0 | CD17: =ROUND((IF(CA17="Hourly (H basis)",BZ17,(BZ17/IF(CA17="Annual (A basis)",12,9)*CB17*CC17))),0) -> 0 | CG17: 0
J18: =ROUND((IF(G18="Hourly (H basis)",F18,(F18/IF(G18="Annual (A basis)",12,9)*H18*I18))),0) -> 0 | M18: 0 | R18: 0 | U18: =SUM(R18,T18) -> 0 | Z18: 0 | AC18: =SUM(Z18,AB18) -> 0 | AH18: 0 | AK18: =SUM(AH18,AJ18) -> 0 | AP18: 0 | AS18: =SUM(AP18,AR18) -> 0 | AX18: 0 | BA18: =SUM(AX18,AZ18) -> 0 | BF18: 0 | BI18: =SUM(BF18,BH18) -> 0 | BN18: 0 | BQ18: =SUM(BN18,BP18) -> 0 | BV18: 0 | BY18: =SUM(BV18,BX18) -> 0 | CD18: =ROUND((IF(CA18="Hourly (H basis)",BZ18,(BZ18/IF(CA18="Annual (A basis)",12,9)*CB18*CC18))),0) -> 0 | CG18: 0
J19: =ROUND((IF(G19="Hourly (H basis)",F19,(F19/IF(G19="Annual (A basis)",12,9)*H19*I19))),0) -> 0 | M19: 0 | R19: 0 | U19: =SUM(R19,T19) -> 0 | Z19: 0 | AC19: =SUM(Z19,AB19) -> 0 | AH19: 0 | AK19: =SUM(AH19,AJ19) -> 0 | AP19: 0 | AS19: =SUM(AP19,AR19) -> 0 | AX19: 0 | BA19: =SUM(AX19,AZ19) -> 0 | BF19: 0 | BI19: =SUM(BF19,BH19) -> 0 | BN19: 0 | BQ19: =SUM(BN19,BP19) -> 0 | BV19: 0 | BY19: =SUM(BV19,BX19) -> 0 | CD19: =ROUND((IF(CA19="Hourly (H basis)",BZ19,(BZ19/IF(CA19="Annual (A basis)",12,9)*CB19*CC19))),0) -> 0 | CG19: 0
J20: =ROUND((IF(G20="Hourly (H basis)",F20,(F20/IF(G20="Annual (A basis)",12,9)*H20*I20))),0) -> 0 | M20: 0 | R20: 0 | U20: =SUM(R20,T20) -> 0 | Z20: 0 | AC20: =SUM(Z20,AB20) -> 0 | AH20: 0 | AK20: =SUM(AH20,AJ20) -> 0 | AP20: 0 | AS20: =SUM(AP20,AR20) -> 0 | AX20: 0 | BA20: =SUM(AX20,AZ20) -> 0 | BF20: 0 | BI20: =SUM(BF20,BH20) -> 0 | BN20: 0 | BQ20: =SUM(BN20,BP20) -> 0 | BV20: 0 | BY20: =SUM(BV20,BX20) -> 0 | CD20: =ROUND((IF(CA20="Hourly (H basis)",BZ20,(BZ20/IF(CA20="Annual (A basis)",12,9)*CB20*CC20))),0) -> 0 | CG20: 0
J21: =ROUND((IF(G21="Hourly (H basis)",F21,(F21/IF(G21="Annual (A basis)",12,9)*H21*I21))),0) -> 0 | M21: 0 | R21: 0 | U21: =SUM(R21,T21) -> 0 | Z21: 0 | AC21: =SUM(Z21,AB21) -> 0 | AH21: 0 | AK21: =SUM(AH21,AJ21) -> 0 | AP21: 0 | AS21: =SUM(AP21,AR21) -> 0 | AX21: 0 | BA21: =SUM(AX21,AZ21) -> 0 | BF21: 0 | BI21: =SUM(BF21,BH21) -> 0 | BN21: 0 | BQ21: =SUM(BN21,BP21) -> 0 | BV21: 0 | BY21: =SUM(BV21,BX21) -> 0 | CD21: =ROUND((IF(CA21="Hourly (H basis)",BZ21,(BZ21/IF(CA21="Annual (A basis)",12,9)*CB21*CC21))),0) -> 0 | CG21: 0
J22: =ROUND((IF(G22="Hourly (H basis)",F22,(F22/IF(G22="Annual (A basis)",12,9)*H22*I22))),0) -> 0 | M22: 0 | R22: 0 | U22: =SUM(R22,T22) -> 0 | Z22: 0 | AC22: =SUM(Z22,AB22) -> 0 | AH22: 0 | AK22: =SUM(AH22,AJ22) -> 0 | AP22: 0 | AS22: =SUM(AP22,AR22) -> 0 | AX22: 0 | BA22: =SUM(AX22,AZ22) -> 0 | BF22: 0 | BI22: =SUM(BF22,BH22) -> 0 | BN22: 0 | BQ22: =SUM(BN22,BP22) -> 0 | BV22: 0 | BY22: =SUM(BV22,BX22) -> 0 | CD22: =ROUND((IF(CA22="Hourly (H basis)",BZ22,(BZ22/IF(CA22="Annual (A basis)",12,9)*CB22*CC22))),0) -> 0 | CG22: 0
J23: =ROUND((IF(G23="Hourly (H basis)",F23,(F23/IF(G23="Annual (A basis)",12,9)*H23*I23))),0) -> 0 | M23: 0 | R23: 0 | U23: =SUM(R23,T23) -> 0 | Z23: 0 | AC23: =SUM(Z23,AB23) -> 0 | AH23: 0 | AK23: =SUM(AH23,AJ23) -> 0 | AP23: 0 | AS23: =SUM(AP23,AR23) -> 0 | AX23: 0 | BA23: =SUM(AX23,AZ23) -> 0 | BF23: 0 | BI23: =SUM(BF23,BH23) -> 0 | BN23: 0 | BQ23: =SUM(BN23,BP23) -> 0 | BV23: 0 | BY23: =SUM(BV23,BX23) -> 0 | CD23: =ROUND((IF(CA23="Hourly (H basis)",BZ23,(BZ23/IF(CA23="Annual (A basis)",12,9)*CB23*CC23))),0) -> 0 | CG23: 0
J24: 0 | M24: 0 | R24: 0 | U24: 0 | Z24: 0 | AC24: 0 | AH24: 0 | AK24: 0 | AP24: 0 | AS24: 0 | AX24: 0 | BA24: 0 | BF24: 0 | BI24: 0 | BN24: 0 | BQ24: 0 | BV24: 0 | BY24: 0 | CD24: 0 | CG24: 0
A25: Insert Here
CC26: Total Salaries & Wages | CD26: =ROUND(SUM(CD5:CD24),0) -> 379886 | CE26: Total Fringe Benefits | CF26: =ROUND(SUM(CF5:CF24),0) -> 147016
CE27: Total Salary, Wage, Fringe | CF27: =SUM(CF26,CD26) -> 526902
A28: NOTE: if you are paying for PA/RA students, you MUST complete the Tuition Remission sheet to ensure you request sufficient funds to cover the Tuition Remission costs.
CE29: Total Instructional | CF29: =SUMIF($C$5:C24,"Instructional",$CG$5:CG24) -> 424422
CE30: Total Support | CF30: =SUMIF($C$5:C24,"Support",$CG$5:CG24) -> 0
L31: =Validation!$A2 -> Instructional | M31: =SUMIF($C$5:$C$25,L31,M$5:M$25) -> 0 | T31: =Validation!$A2 -> Instructional | U31: =SUMIF($C$5:$C$25,T31,U$5:U$25) -> 147022 | AB31: =Validation!$A2 -> Instructional | AC31: =SUMIF($C$5:$C$25,AB31,AC$5:AC$25) -> 355072 | AJ31: =Validation!$A2 -> Instructional | AK31: =SUMIF($C$5:$C$25,AJ31,AK$5:AK$25) -> 424422 | AR31: =Validation!$A2 -> Instructional | AS31: =SUMIF($C$5:$C$25,AR31,AS$5:AS$25) -> 424422 | AZ31: =Validation!$A2 -> Instructional | BA31: =SUMIF($C$5:$C$25,AZ31,BA$5:BA$25) -> 424422 | BH31: =Validation!$A2 -> Instructional | BI31: =SUMIF($C$5:$C$25,BH31,BI$5:BI$25) -> 424422 | BP31: =Validation!$A2 -> Instructional | BQ31: =SUMIF($C$5:$C$25,BP31,BQ$5:BQ$25) -> 424422 | BX31: =Validation!$A2 -> Instructional | BY31: =SUMIF($C$5:$C$25,BX31,BY$5:BY$25) -> 424422 | CF31: =Validation!$A2 -> Instructional | CG31: =SUMIF($C$5:$C$25,CF31,CG$5:CG$25) -> 424422
L32: =Validation!$A3 -> Program Support | M32: =SUMIF($C$5:$C$25,L32,M$5:M$25) -> 47000 | T32: =Validation!$A3 -> Program Support | U32: =SUMIF($C$5:$C$25,T32,U$5:U$25) -> 102480 | AB32: =Validation!$A3 -> Program Support | AC32: =SUMIF($C$5:$C$25,AB32,AC$5:AC$25) -> 102480 | AJ32: =Validation!$A3 -> Program Support | AK32: =SUMIF($C$5:$C$25,AJ32,AK$5:AK$25) -> 102480 | AR32: =Validation!$A3 -> Program Support | AS32: =SUMIF($C$5:$C$25,AR32,AS$5:AS$25) -> 102480 | AZ32: =Validation!$A3 -> Program Support | BA32: =SUMIF($C$5:$C$25,AZ32,BA$5:BA$25) -> 102480 | BH32: =Validation!$A3 -> Program Support | BI32: =SUMIF($C$5:$C$25,BH32,BI$5:BI$25) -> 102480 | BP32: =Validation!$A3 -> Program Support | BQ32: =SUMIF($C$5:$C$25,BP32,BQ$5:BQ$25) -> 102480 | BX32: =Validation!$A3 -> Program Support | BY32: =SUMIF($C$5:$C$25,BX32,BY$5:BY$25) -> 102480 | CF32: =Validation!$A3 -> Program Support | CG32: =SUMIF($C$5:$C$25,CF32,CG$5:CG$25) -> 102480
L33: =Validation!$A4 -> Program Marketing | M33: =SUMIF($C$5:$C$25,L33,M$5:M$25) -> 0 | T33: =Validation!$A4 -> Program Marketing | U33: =SUMIF($C$5:$C$25,T33,U$5:U$25) -> 0 | AB33: =Validation!$A4 -> Program Marketing | AC33: =SUMIF($C$5:$C$25,AB33,AC$5:AC$25) -> 0 | AJ33: =Validation!$A4 -> Program Marketing | AK33: =SUMIF($C$5:$C$25,AJ33,AK$5:AK$25) -> 0 | AR33: =Validation!$A4 -> Program Marketing | AS33: =SUMIF($C$5:$C$25,AR33,AS$5:AS$25) -> 0 | AZ33: =Validation!$A4 -> Program Marketing | BA33: =SUMIF($C$5:$C$25,AZ33,BA$5:BA$25) -> 0 | BH33: =Validation!$A4 -> Program Marketing | BI33: =SUMIF($C$5:$C$25,BH33,BI$5:BI$25) -> 0 | BP33: =Validation!$A4 -> Program Marketing | BQ33: =SUMIF($C$5:$C$25,BP33,BQ$5:BQ$25) -> 0 | BX33: =Validation!$A4 -> Program Marketing | BY33: =SUMIF($C$5:$C$25,BX33,BY$5:BY$25) -> 0 | CF33: =Validation!$A4 -> Program Marketing | CG33: =SUMIF($C$5:$C$25,CF33,CG$5:CG$25) -> 0
L34: =Validation!$A5 -> Program Development - Startup (DCS / Campus) | M34: =SUMIF($C$5:$C$25,L34,M$5:M$25) -> 194180 | T34: =Validation!$A5 -> Program Development - Startup (DCS / Campus) | U34: =SUMIF($C$5:$C$25,T34,U$5:U$25) -> 277400 | AB34: =Validation!$A5 -> Program Development - Startup (DCS / Campus) | AC34: =SUMIF($C$5:$C$25,AB34,AC$5:AC$25) -> 69350 | AJ34: =Validation!$A5 -> Program Development - Startup (DCS / Campus) | AK34: =SUMIF($C$5:$C$25,AJ34,AK$5:AK$25) -> 0 | AR34: =Validation!$A5 -> Program Development - Startup (DCS / Campus) | AS34: =SUMIF($C$5:$C$25,AR34,AS$5:AS$25) -> 0 | AZ34: =Validation!$A5 -> Program Development - Startup (DCS / Campus) | BA34: =SUMIF($C$5:$C$25,AZ34,BA$5:BA$25) -> 0 | BH34: =Validation!$A5 -> Program Development - Startup (DCS / Campus) | BI34: =SUMIF($C$5:$C$25,BH34,BI$5:BI$25) -> 0 | BP34: =Validation!$A5 -> Program Development - Startup (DCS / Campus) | BQ34: =SUMIF($C$5:$C$25,BP34,BQ$5:BQ$25) -> 0 | BX34: =Validation!$A5 -> Program Development - Startup (DCS / Campus) | BY34: =SUMIF($C$5:$C$25,BX34,BY$5:BY$25) -> 0 | CF34: =Validation!$A5 -> Program Development - Startup (DCS / Campus) | CG34: =SUMIF($C$5:$C$25,CF34,CG$5:CG$25) -> 0
L35: =Validation!$A6 -> Program Development - Startup | M35: =SUMIF($C$5:$C$25,L35,M$5:M$25) -> 0 | T35: =Validation!$A6 -> Program Development - Startup | U35: =SUMIF($C$5:$C$25,T35,U$5:U$25) -> 0 | AB35: =Validation!$A6 -> Program Development - Startup | AC35: =SUMIF($C$5:$C$25,AB35,AC$5:AC$25) -> 0 | AJ35: =Validation!$A6 -> Program Development - Startup | AK35: =SUMIF($C$5:$C$25,AJ35,AK$5:AK$25) -> 0 | AR35: =Validation!$A6 -> Program Development - Startup | AS35: =SUMIF($C$5:$C$25,AR35,AS$5:AS$25) -> 0 | AZ35: =Validation!$A6 -> Program Development - Startup | BA35: =SUMIF($C$5:$C$25,AZ35,BA$5:BA$25) -> 0 | BH35: =Validation!$A6 -> Program Development - Startup | BI35: =SUMIF($C$5:$C$25,BH35,BI$5:BI$25) -> 0 | BP35: =Validation!$A6 -> Program Development - Startup | BQ35: =SUMIF($C$5:$C$25,BP35,BQ$5:BQ$25) -> 0 | BX35: =Validation!$A6 -> Program Development - Startup | BY35: =SUMIF($C$5:$C$25,BX35,BY$5:BY$25) -> 0
M38: ='131 Program Summary'!C22 -> 2020 | N38: ='131 Program Summary'!D22 -> 2021 | O38: ='131 Program Summary'!E22 -> 2022 | P38: ='131 Program Summary'!F22 -> 2023 | Q38: ='131 Program Summary'!G22 -> 2024 | R38: ='131 Program Summary'!H22 -> 2025 | S38: ='131 Program Summary'!I22 -> 2026 | T38: ='131 Program Summary'!J22 -> 2027 | U38: ='131 Program Summary'!K22 -> 2028 | V38: ='131 Program Summary'!L22 -> 2029
L39: =L31 -> Instructional | M39: =M31 -> 0 | N39: =U31 -> 147022 | O39: =AC31 -> 355072 | P39: =AK31 -> 424422 | Q39: =AS31 -> 424422 | R39: =BA31 -> 424422 | S39: =BI31 -> 424422 | T39: =BQ31 -> 424422 | U39: =BY31 -> 424422 | V39: =CG31 -> 424422
L40: =L32 -> Program Support | M40: 47000 | N40: =U32 -> 102480 | O40: =AC32 -> 102480 | P40: =AK32 -> 102480 | Q40: =AS32 -> 102480 | R40: =BA32 -> 102480 | S40: =BI32 -> 102480 | T40: =BQ32 -> 102480 | U40: =BY32 -> 102480 | V40: =CG32 -> 102480
L41: Program Marketing | M41: =M33 -> 0 | N41: 0 | O41: 0 | P41: 0 | Q41: 0 | R41: =BA33 -> 0 | S41: 0 | T41: 0 | U41: 0 | V41: 0
L42: Program Development - Startup (DCS / Campus) | M42: 194180 | N42: 277400 | O42: 69350 | P42: 0 | Q42: 0 | R42: 0 | S42: 0 | T42: 0 | U42: 0 | V42: 0
L43: Program Development - Startup | M43: 0 | N43: =U35 -> 0 | O43: =AC35 -> 0 | P43: =AK35 -> 0 | Q43: =AS35 -> 0 | R43: =BA35 -> 0 | S43: =BI35 -> 0 | T43: =BQ35 -> 0 | U43: =BY35 -> 0 | V43: =CG35 -> 0
B44: Types of Employees and Fringe Rates
B45: Faculty / Academic Staff | C45: 0.387
B46: RA / PA / TA | C46: 0.387
B47: Unversity Staff | C47: 0.387

Sheet Tuition Remission
A1: Worksheet for Project Budget
B4: ='131 Program Summary'!C22 -> 2020 | C4: ='131 Program Summary'!D22 -> 2021 | D4: ='131 Program Summary'!E22 -> 2022 | E4: ='131 Program Summary'!F22 -> 2023 | F4: ='131 Program Summary'!G22 -> 2024 | G4: ='131 Program Summary'!H22 -> 2025 | H4: ='131 Program Summary'!I22 -> 2026 | I4: ='131 Program Summary'!J22 -> 2027 | J4: ='131 Program Summary'!K22 -> 2028 | K4: ='131 Program Summary'!L22 -> 2029
A5: Number of First Semester PA/RA
A6: Sub-Total | B6: =ROUND(B5*6000,0) -> 0 | C6: =ROUND(C5*6000,0) -> 0 | D6: 0 | E6: 0 | F6: 0 | G6: 0 | H6: 0 | I6: 0 | J6: 0 | K6: 0
A7: Number of Second Semester PA/RA
A8: Sub-Total | B8: =ROUND(B7*6000,0) -> 0 | C8: =ROUND(C7*6000,0) -> 0 | D8: 0 | E8: 0 | F8: 0 | G8: 0 | H8: 0 | I8: 0 | J8: 0 | K8: 0
A9: Total Tuition Remission | B9: =ROUND(SUM(B6, B8),0) -> 0 | C9: 0 | D9: 0 | E9: 0 | F9: 0 | G9: 0 | H9: 0 | I9: 0 | J9: 0 | K9: 0
A12: NOTE: To ensure that you have requested sufficient funds to cover the cost of Tuition Remission, please indicate the number of PA/RA students you will have in each year. If you expect to have one student for the full budget year and another for half the budget year, you may indicate 1.5 students.

Sheet Sub-Agreements
B1: *Note: Default rate for subagreements is $600 per credit hour per student. | G1: Worksheet for Project Budget
A3: Course Name | B3: School / College | C3: Type | D3: Payment Type | E3: =CONCATENATE(G3," ","Payment Amount","*") -> 2020 Payment Amount* | F3: =CONCATENATE(G3," ","Credits") -> 2020 Credits | G3: ='131 Program Summary'!C22 -> 2020 | H3: =CONCATENATE(J3," ","Payment Amount") -> 2021 Payment Amount | I3: =CONCATENATE(J3," ","Credits") -> 2021 Credits | J3: ='131 Program Summary'!D22 -> 2021 | K3: =CONCATENATE(M3," ","Payment Amount") -> 2022 Payment Amount | L3: =CONCATENATE(M3," ","Credits") -> 2022 Credits | M3: ='131 Program Summary'!E22 -> 2022 | N3: =CONCATENATE(P3," ","Payment Amount") -> 2023 Payment Amount | O3: =CONCATENATE(P3," ","Credits") -> 2023 Credits | P3: ='131 Program Summary'!F22 -> 2023 | Q3: =CONCATENATE(S3," ","Payment Amount") -> 2024 Payment Amount | R3: =CONCATENATE(S3," ","Credits") -> 2024 Credits | S3: ='131 Program Summary'!G22 -> 2024 | T3: =CONCATENATE(V3," ","Payment Amount") -> 2025 Payment Amount | U3: =CONCATENATE(V3," ","Credits") -> 2025 Credits | V3: ='131 Program Summary'!H22 -> 2025 | W3: =CONCATENATE(Y3," ","Payment Amount") -> 2026 Payment Amount | X3: =CONCATENATE(Y3," ","Credits") -> 2026 Credits | Y3: ='131 Program Summary'!I22 -> 2026 | Z3: =CONCATENATE(AB3," ","Payment Amount") -> 2027 Payment Amount | AA3: =CONCATENATE(AB3," ","Credits") -> 2027 Credits | AB3: ='131 Program Summary'!J22 -> 2027 | AC3: =CONCATENATE(AE3," ","Payment Amount") -> 2028 Payment Amount | AD3: =CONCATENATE(AE3," ","Credits") -> 2028 Credits | AE3: ='131 Program Summary'!K22 -> 2028 | AF3: =CONCATENATE(AH3," ","Payment Amount") -> 2029 Payment Amount | AG3: =CONCATENATE(AH3," ","Credits") -> 2029 Credits | AH3: ='131 Program Summary'!L22 -> 2029
B4: Wisconsin School of Business | C4: Instructional | D4: Per Credit | E4: =IF(ISBLANK($A4)=TRUE,"",600) ->  | F4: 6 | G4: =IFERROR(IF($D4="Fixed Rate",E4,E4*F4),"") ->  | H4: =IF(ISBLANK($A4)=TRUE,"",600) ->  | I4: 6 | J4: =IFERROR(IF($D4="Fixed Rate",H4,H4*I4),"") ->  | K4: =IF(ISBLANK($A4)=TRUE,"",600) ->  | L4: 6 | M4: =IFERROR(IF($D4="Fixed Rate",K4,K4*L4),"") ->  | N4: =IF(ISBLANK($A4)=TRUE,"",600) ->  | O4: 6 | P4: =IFERROR(IF($D4="Fixed Rate",N4,N4*O4),"") ->  | Q4: =IF(ISBLANK($A4)=TRUE,"",600) ->  | R4: 6 | S4: =IFERROR(IF($D4="Fixed Rate",Q4,Q4*R4),"") ->  | T4: =IF(ISBLANK($A4)=TRUE,"",600) ->  | U4: 6 | V4: =IFERROR(IF($D4="Fixed Rate",T4,T4*U4),"") ->  | W4: =IF(ISBLANK($A4)=TRUE,"",600) ->  | X4: 6 | Y4: =IFERROR(IF($D4="Fixed Rate",W4,W4*X4),"") ->  | Z4: =IF(ISBLANK($A4)=TRUE,"",600) ->  | AA4: 6 | AB4: =IFERROR(IF($D4="Fixed Rate",Z4,Z4*AA4),"") ->  | AC4: =IF(ISBLANK($A4)=TRUE,"",600) ->  | AD4: 6 | AE4: =IFERROR(IF($D4="Fixed Rate",AC4,AC4*AD4),"") ->  | AF4: =IF(ISBLANK($A4)=TRUE,"",600) ->  | AG4: 6 | AH4: =IFERROR(IF($D4="Fixed Rate",AF4,AF4*AG4),"") -> 
B5: College of Agricultural and Life Sciences | C5: Instructional | D5: Per Credit | F5: 9 | G5: =IFERROR(IF($D5="Fixed Rate",E5,E5*F5),"") ->  | I5: 9 | J5: =IFERROR(IF($D5="Fixed Rate",H5,H5*I5),"") ->  | L5: 9 | M5: =IFERROR(IF($D5="Fixed Rate",K5,K5*L5),"") ->  | O5: 9 | P5: =IFERROR(IF($D5="Fixed Rate",N5,N5*O5),"") ->  | R5: 9 | S5: =IFERROR(IF($D5="Fixed Rate",Q5,Q5*R5),"") ->  | U5: 9 | V5: =IFERROR(IF($D5="Fixed Rate",T5,T5*U5),"") ->  | X5: 9 | Y5: =IFERROR(IF($D5="Fixed Rate",W5,W5*X5),"") ->  | AA5: 9 | AB5: =IFERROR(IF($D5="Fixed Rate",Z5,Z5*AA5),"") ->  | AD5: 9 | AE5: =IFERROR(IF($D5="Fixed Rate",AC5,AC5*AD5),"") ->  | AG5: 9 | AH5: =IFERROR(IF($D5="Fixed Rate",AF5,AF5*AG5),"") -> 
B6: School of Education | C6: Instructional | D6: Per Credit | F6: 3 | G6: =IFERROR(IF($D6="Fixed Rate",E6,E6*F6),"") ->  | I6: 3 | L6: 3 | M6: =IFERROR(IF($D6="Fixed Rate",K6,K6*L6),"") ->  | O6: 3 | P6: =IFERROR(IF($D6="Fixed Rate",N6,N6*O6),"") ->  | R6: 3 | U6: 3 | X6: 3 | AA6: 3 | AD6: 3 | AG6: 3
B7: School of Education | C7: Instructional | D7: Per Credit | F7: 3 | I7: 3 | L7: 3 | O7: 3 | R7: 3 | U7: 3 | X7: 3 | AA7: 3 | AD7: 3 | AG7: 3
B8: College of Letters & Science | C8: Support | D8: Fixed Rate | F8: 6 | I8: 6 | L8: 6 | O8: 6 | R8: 6 | U8: 6 | X8: 6 | AA8: 6 | AD8: 6 | AG8: 6
B9: School of Nursing | C9: Support | D9: Per Credit | F9: 6 | I9: 6 | L9: 6 | O9: 6 | R9: 6 | U9: 6 | X9: 6 | AA9: 6 | AD9: 6 | AG9: 6
B10: College of Agricultural and Life Sciences | C10: Instructional | D10: Fixed Rate | F10: 6 | G10: =IFERROR(IF($D10="Fixed Rate",E10,E10*F10),"") ->  | I10: 6 | L10: 6 | O10: 6 | R10: 6 | U10: 6 | X10: 6 | AA10: 6 | AD10: 6 | AG10: 6
B11: School of Nursing | C11: Instructional | D11: Fixed Rate | F11: 6 | I11: 6 | L11: 6 | O11: 6 | R11: 6 | U11: 6 | X11: 6 | AA11: 6 | AD11: 6 | AG11: 6
B12: School of Education | C12: Instructional | D12: Per Credit | F12: 3 | I12: 3 | J12: =IFERROR(IF($D12="Fixed Rate",H12,H12*I12),"") ->  | L12: 3 | M12: =IFERROR(IF($D12="Fixed Rate",K12,K12*L12),"") ->  | O12: 3 | R12: 3 | U12: 3 | X12: 3 | AA12: 3 | AD12: 3 | AG12: 3
B13: Wisconsin School of Business | C13: Support | D13: Per Credit | F13: 3 | G13: =IFERROR(IF($D13="Fixed Rate",E13,E13*F13),"") ->  | I13: 3 | L13: 3 | O13: 3 | R13: 3 | S13: =IFERROR(IF($D13="Fixed Rate",Q13,Q13*R13),"") ->  | U13: 3 | X13: 3 | AA13: 3 | AD13: 3 | AG13: 3
C14: Support | D14: Fixed Rate | F14: 3 | G14: =IFERROR(IF($D14="Fixed Rate",E14,E14*F14),"") ->  | I14: 3 | J14: =IFERROR(IF($D14="Fixed Rate",H14,H14*I14),"") ->  | L14: 3 | O14: 3 | P14: =IFERROR(IF($D14="Fixed Rate",N14,N14*O14),"") ->  | R14: 3 | S14: =IFERROR(IF($D14="Fixed Rate",Q14,Q14*R14),"") ->  | U14: 3 | X14: 3 | AA14: 3 | AD14: 3 | AG14: 3
C15: Support | D15: Per Credit | F15: 1 | G15: =IFERROR(IF($D15="Fixed Rate",E15,E15*F15),"") ->  | I15: 1 | J15: =IFERROR(IF($D15="Fixed Rate",H15,H15*I15),"") ->  | L15: 1 | O15: 1 | P15: =IFERROR(IF($D15="Fixed Rate",N15,N15*O15),"") ->  | R15: 1 | S15: =IFERROR(IF($D15="Fixed Rate",Q15,Q15*R15),"") ->  | U15: 1 | X15: 1 | AA15: 1 | AD15: 1 | AG15: 1
C16: Instructional | D16: Per Credit | F16: 1 | G16: =IFERROR(IF($D16="Fixed Rate",E16,E16*F16),"") ->  | I16: 1 | J16: =IFERROR(IF($D16="Fixed Rate",H16,H16*I16),"") ->  | L16: 1 | O16: 1 | P16: =IFERROR(IF($D16="Fixed Rate",N16,N16*O16),"") ->  | R16: 1 | S16: =IFERROR(IF($D16="Fixed Rate",Q16,Q16*R16),"") ->  | U16: 1 | X16: 1 | AA16: 1 | AD16: 1 | AG16: 1
C17: Support | D17: Per Credit | F17: 3 | G17: =IFERROR(IF($D17="Fixed Rate",E17,E17*F17),"") ->  | I17: 3 | J17: =IFERROR(IF($D17="Fixed Rate",H17,H17*I17),"") ->  | L17: 3 | O17: 3 | P17: =IFERROR(IF($D17="Fixed Rate",N17,N17*O17),"") ->  | R17: 3 | S17: =IFERROR(IF($D17="Fixed Rate",Q17,Q17*R17),"") ->  | U17: 3 | X17: 3 | AA17: 3 | AD17: 3 | AG17: 3
C18: Support | D18: Fixed Rate | F18: 6 | G18: =IFERROR(IF($D18="Fixed Rate",E18,E18*F18),"") ->  | I18: 6 | J18: =IFERROR(IF($D18="Fixed Rate",H18,H18*I18),"") ->  | L18: 6 | M18: =IFERROR(IF($D18="Fixed Rate",K18,K18*L18),"") ->  | O18: 6 | P18: =IFERROR(IF($D18="Fixed Rate",N18,N18*O18),"") ->  | R18: 6 | S18: =IFERROR(IF($D18="Fixed Rate",Q18,Q18*R18),"") ->  | U18: 6 | X18: 6 | AA18: 6 | AD18: 6 | AG18: 6
C19: Support | D19: Per Credit | F19: 9 | I19: 9 | L19: 9 | O19: 9 | R19: 9 | U19: 9 | X19: 9 | AA19: 9 | AD19: 9 | AG19: 9
G21: =IFERROR(IF($D21="Fixed Rate",E21,E21*F21),"") ->  | J21: =IFERROR(IF($D21="Fixed Rate",H21,H21*I21),"") ->  | M21: =IFERROR(IF($D21="Fixed Rate",K21,K21*L21),"") ->  | P21: =IFERROR(IF($D21="Fixed Rate",N21,N21*O21),"") ->  | S21: =IFERROR(IF($D21="Fixed Rate",Q21,Q21*R21),"") ->  | V21: =IFERROR(IF($D21="Fixed Rate",T21,T21*U21),"") ->  | Y21: =IFERROR(IF($D21="Fixed Rate",W21,W21*X21),"") ->  | AB21: =IFERROR(IF($D21="Fixed Rate",Z21,Z21*AA21),"") ->  | AE21: =IFERROR(IF($D21="Fixed Rate",AC21,AC21*AD21),"") ->  | AH21: =IFERROR(IF($D21="Fixed Rate",AF21,AF21*AG21),"") -> 
G22: =IFERROR(IF($D22="Fixed Rate",E22,E22*F22),"") ->  | J22: =IFERROR(IF($D22="Fixed Rate",H22,H22*I22),"") ->  | M22: =IFERROR(IF($D22="Fixed Rate",K22,K22*L22),"") ->  | P22: =IFERROR(IF($D22="Fixed Rate",N22,N22*O22),"") ->  | S22: =IFERROR(IF($D22="Fixed Rate",Q22,Q22*R22),"") ->  | V22: =IFERROR(IF($D22="Fixed Rate",T22,T22*U22),"") ->  | Y22: =IFERROR(IF($D22="Fixed Rate",W22,W22*X22),"") ->  | AB22: =IFERROR(IF($D22="Fixed Rate",Z22,Z22*AA22),"") ->  | AE22: =IFERROR(IF($D22="Fixed Rate",AC22,AC22*AD22),"") ->  | AH22: =IFERROR(IF($D22="Fixed Rate",AF22,AF22*AG22),"") -> 
G23: =IFERROR(IF($D23="Fixed Rate",E23,E23*F23),"") ->  | J23: =IFERROR(IF($D23="Fixed Rate",H23,H23*I23),"") ->  | M23: =IFERROR(IF($D23="Fixed Rate",K23,K23*L23),"") ->  | P23: =IFERROR(IF($D23="Fixed Rate",N23,N23*O23),"") ->  | S23: =IFERROR(IF($D23="Fixed Rate",Q23,Q23*R23),"") ->  | V23: =IFERROR(IF($D23="Fixed Rate",T23,T23*U23),"") ->  | Y23: =IFERROR(IF($D23="Fixed Rate",W23,W23*X23),"") ->  | AB23: =IFERROR(IF($D23="Fixed Rate",Z23,Z23*AA23),"") ->  | AE23: =IFERROR(IF($D23="Fixed Rate",AC23,AC23*AD23),"") ->  | AH23: =IFERROR(IF($D23="Fixed Rate",AF23,AF23*AG23),"") -> 
A24: Insert Here
A25: Total Sub-Agreements | G25: =ROUND(SUM(G4:G23),0) -> 0 | J25: =ROUND(SUM(J4:J23),0) -> 0 | M25: =ROUND(SUM(M4:M23),0) -> 0 | P25: =ROUND(SUM(P4:P23),0) -> 0 | S25: =ROUND(SUM(S4:S23),0) -> 0 | V25: =ROUND(SUM(V4:V23),0) -> 0 | Y25: =ROUND(SUM(Y4:Y23),0) -> 0 | AB25: =ROUND(SUM(AB4:AB23),0) -> 0 | AE25: =ROUND(SUM(AE4:AE23),0) -> 0 | AH25: =ROUND(SUM(AH4:AH23),0) -> 0
G28: ='131 Program Summary'!C22 -> 2020 | H28: ='131 Program Summary'!D22 -> 2021 | I28: ='131 Program Summary'!E22 -> 2022 | J28: ='131 Program Summary'!F22 -> 2023 | K28: ='131 Program Summary'!G22 -> 2024 | L28: ='131 Program Summary'!H22 -> 2025 | M28: ='131 Program Summary'!I22 -> 2026 | N28: ='131 Program Summary'!J22 -> 2027 | O28: ='131 Program Summary'!K22 -> 2028 | P28: ='131 Program Summary'!L22 -> 2029
E29: Instructional | G29: =SUMIF($C$4:$C23,"Instructional",G4:G23) -> 0 | H29: =SUMIF($C$4:$C23,"Instructional",J4:J23) -> 0 | I29: =SUMIF($C$4:$C23,"Instructional",M4:M23) -> 0 | J29: =SUMIF($C$4:$C23,"Instructional",P4:P23) -> 0 | K29: =SUMIF($C$4:$C23,"Instructional",S4:S23) -> 0 | L29: =SUMIF($C$4:$C23,"Instructional",V4:V23) -> 0 | M29: =SUMIF($C$4:$C23,"Instructional",Y4:Y23) -> 0 | N29: =SUMIF($C$4:$C23,"Instructional",AB4:AB23) -> 0 | O29: =SUMIF($C$4:$C23,"Instructional",AE4:AE23) -> 0 | P29: =SUMIF($C$4:$C23,"Instructional",AH4:AH23) -> 0
E30: Support | G30: =SUMIF($C$4:$C23,"Support",G4:G23) -> 0 | H30: =SUMIF($C$4:$C23,"Support",J4:J23) -> 0 | I30: =SUMIF($C$4:$C23,"Support",M4:M23) -> 0 | J30: =SUMIF($C$4:$C23,"Support",P4:P23) -> 0 | K30: =SUMIF($C$4:$C23,"Support",S4:S23) -> 0 | L30: =SUMIF($C$4:$C23,"Support",V4:V23) -> 0 | M30: =SUMIF($C$4:$C23,"Support",Y4:Y23) -> 0 | N30: =SUMIF($C$4:$C23,"Support",AB4:AB23) -> 0 | O30: =SUMIF($C$4:$C23,"Support",AE4:AE23) -> 0 | P30: =SUMIF($C$4:$C23,"Support",AH4:AH23) -> 0

Sheet Supplies & Services
C1: Worksheet for Project Budget
A4: Category | B4: Details | C4: Type | D4: ='131 Program Summary'!C22 -> 2020 | E4: ='131 Program Summary'!D22 -> 2021 | F4: ='131 Program Summary'!E22 -> 2022 | G4: ='131 Program Summary'!F22 -> 2023 | H4: ='131 Program Summary'!G22 -> 2024 | I4: ='131 Program Summary'!H22 -> 2025 | J4: ='131 Program Summary'!I22 -> 2026 | K4: ='131 Program Summary'!J22 -> 2027 | L4: ='131 Program Summary'!K22 -> 2028 | M4: ='131 Program Summary'!L22 -> 2029 | N4: Cumulative
A5: Marketing | C5: Program Marketing | N5: =SUM(D5:M5) -> 0
A6: Supplies | C6: Program Marketing | N6: =SUM(D6:M6) -> 0
A7: Marketing | C7: Program Marketing | N7: 0
A8: Supplies | C8: Program Marketing | N8: 0
A9: Other | C9: Program Marketing | N9: 0
C10: Program Marketing | N10: 0
C11: Program Marketing | N11: 0
C12: Program Marketing | N12: 0
C13: Program Marketing | N13: 0
C14: Program Marketing | N14: 0
C15: Program Marketing | N15: 0
C16: Program Marketing | N16: 0
C17: Program Marketing | N17: 0
C18: Program Marketing | N18: 0
C19: Program Marketing | N19: 0
C20: Program Marketing | N20: 0
C21: Program Marketing | N21: 0
C22: Program Marketing | N22: 0
C23: Program Marketing | N23: 0
C24: Program Marketing | N24: =SUM(D24:H24) -> 0
A25: Insert Here | C25: Program Marketing
A26: Total Supplies | D26: =ROUND(SUM(D5:D24),0) -> 0 | E26: 0 | F26: 0 | G26: 0 | H26: 0 | I26: 0 | J26: 0 | K26: 0 | L26: 0 | M26: 0 | N26: =ROUND(SUM(N5:N24),0) -> 0
C29: Instructional | D29: =SUMIF($C$5:$C$25,$C29,D$5:D$25) -> 0 | E29: =SUMIF($C$5:$C$25,$C29,E$5:E$25) -> 0 | F29: 0 | G29: 0 | H29: 0 | I29: 0 | J29: 0 | K29: =SUMIF($C$5:$C$25,$C29,K$5:K$25) -> 0 | L29: 0 | M29: 0
C30: Program Support | D30: =SUMIF($C$5:$C$25,$C30,D$5:D$25) -> 0 | E30: =SUMIF($C$5:$C$25,$C30,E$5:E$25) -> 0 | F30: 0 | G30: 0 | H30: 0 | I30: 0 | J30: 0 | K30: =SUMIF($C$5:$C$25,$C30,K$5:K$25) -> 0 | L30: =SUMIF($C$5:$C$25,$C30,L$5:L$25) -> 0 | M30: 0
C31: Program Development - Startup | D31: =SUMIF($C$5:$C$25,$C31,D$5:D$25) -> 0 | E31: 0 | F31: 0 | G31: 0 | H31: 0 | I31: =SUMIF($C$5:$C$25,$C31,I$5:I$25) -> 0 | J31: 0 | K31: =SUMIF($C$5:$C$25,$C31,K$5:K$25) -> 0 | L31: 0 | M31: 0
C32: Program Development - Startup (DCS / Campus) | D32: =SUMIF($C$5:$C$25,$C32,D$5:D$25) -> 0 | E32: 0 | F32: 0 | G32: 0 | H32: 0 | I32: 0 | J32: 0 | K32: 0 | L32: 0 | M32: 0
C33: Program Marketing | D33: =SUMIF($C$5:$C$25,$C33,D$5:D$25) -> 0 | E33: 0 | F33: 0 | G33: 0 | H33: 0 | I33: 0 | J33: 0 | K33: 0 | L33: 0 | M33: 0

Sheet Investing the Margin
A1: 1 | B1: Worksheet for Investing the Margin
A2: =A1+1 -> 2 | C2: This page should reflect how they will spend the money (in detail). Categories include department salaries, new faculty lines, additional TA positions or scholarships, professional development, and other.
A3: =A2+1 -> 3 | C3: The format will be a hybrid of "Salaries & Wages" and "Supplies"
A4: 4 | C4: The summary categories should show up on the "131 Program Summary"
A5: 5 | B5: Category | C5: Description | D5: =CONCATENATE('131 Program Summary'!C22," ","Amount") -> 2020 Amount | E5: =CONCATENATE('131 Program Summary'!D22," ","Amount") -> 2021 Amount | F5: =CONCATENATE('131 Program Summary'!E22," ","Amount") -> 2022 Amount | G5: =CONCATENATE('131 Program Summary'!F22," ","Amount") -> 2023 Amount | H5: =CONCATENATE('131 Program Summary'!G22," ","Amount") -> 2024 Amount | I5: =CONCATENATE('131 Program Summary'!H22," ","Amount") -> 2025 Amount | J5: =CONCATENATE('131 Program Summary'!I22," ","Amount") -> 2026 Amount | K5: =CONCATENATE('131 Program Summary'!J22," ","Amount") -> 2027 Amount | L5: =CONCATENATE('131 Program Summary'!K22," ","Amount") -> 2028 Amount | M5: =CONCATENATE('131 Program Summary'!L22," ","Amount") -> 2029 Amount
A6: 6
A7: 7 | B7: New Faculty Lines
A8: 8 | B8: Additional TA Positions or Scholarships
A9: 9 | B9: Professional Development
A10: 10 | B10: Department Salaries
A11: 11 | B11: Other
A12: 12 | B12: Department Salaries
A13: 13 | B13: Other
A14: 14 | B14: Additional TA Positions or Scholarships
A15: 15 | B15: Department Salaries
A16: 16 | B16: New Faculty Lines
A17: 17 | B17: Additional TA Positions or Scholarships
A18: 18 | B18: Professional Development
A19: 19 | B19: Department Salaries
A20: 20 | B20: New Faculty Lines
A21: 21
A22: 22
A23: 23
A24: 24 | B24: Insert Here
A25: 25 | C25: Total | D25: =SUM(D7:D24) -> 0 | E25: =SUM(E7:E24) -> 0 | F25: 0 | G25: 0 | H25: 0 | I25: 0 | J25: 0 | K25: 0 | L25: 0 | M25: 0
A26: 26
A27: 27 | B27: Department Salaries | D27: =SUMIF($B$7:$B$24,$B27,D$7:D$24) -> 0 | E27: =SUMIF($B$7:$B$24,$B27,E$7:E$24) -> 0 | F27: 0 | G27: 0 | H27: 0 | I27: 0 | J27: 0 | K27: 0 | L27: 0 | M27: 0
A28: 28 | B28: New Faculty Lines | D28: =SUMIF($B$7:$B$24,$B28,D$7:D$24) -> 0 | E28: 0 | F28: 0 | G28: 0 | H28: 0 | I28: 0 | J28: 0 | K28: 0 | L28: 0 | M28: 0
A29: 29 | B29: Additional TA Positions or Scholarships | D29: 0 | E29: 0 | F29: 0 | G29: 0 | H29: 0 | I29: 0 | J29: 0 | K29: 0 | L29: 0 | M29: 0
A30: 30 | B30: Professional Development | D30: 0 | E30: 0 | F30: 0 | G30: 0 | H30: 0 | I30: 0 | J30: 0 | K30: 0 | L30: 0 | M30: 0
A31: 31 | B31: Other | D31: 0 | E31: 0 | F31: 0 | G31: 0 | H31: 0 | I31: 0 | J31: 0 | K31: 0 | L31: 0 | M31: 0
A32: 32 | C32: ='131 Program Summary'!B53 -> Investment Margin - Department | D32: ='131 Program Summary'!C53 -> -15000 | E32: ='131 Program Summary'!D53 -> -4500 | F32: ='131 Program Summary'!E53 -> -4500 | G32: ='131 Program Summary'!F53 -> -4500 | H32: ='131 Program Summary'!G53 -> -4500 | I32: ='131 Program Summary'!H53 -> -4500 | J32: ='131 Program Summary'!I53 -> -4500 | K32: ='131 Program Summary'!J53 -> -4500 | L32: ='131 Program Summary'!K53 -> -4500 | M32: ='131 Program Summary'!L53 -> -4500
A33: 33
A34: 34 | C34: Check | D34: =D32-D25 -> -15000 | E34: =E32-E25 -> -4500 | F34: =F32-F25 -> -4500 | G34: -4500 | H34: -4500 | I34: -4500 | J34: -4500 | K34: -4500 | L34: -4500 | M34: -4500
A35: 35
A36: 36 | B36: Notes
A37: 37 | B37: Must add fringe to new faculty lines (38.7%) and department salaries (38.7%)
A38: 38 | B38: Investment margin must be targeted at important department priorities so that the "check" line is very close to zero (minimal surplus)
A39: 39
A40: 40
A41: 41
A42: 42
A43: 43
A44: 44
A45: 45
A46: 46
A47: 47
A48: 48
A49: 49
A50: 50
A51: 51
A52: 52
A53: 53
A54: 54
A55: 55
A56: 56
A57: 57
A58: 58
A59: 59
A60: 60
A61: 61
A62: 62
A63: 63
A64: 64
A65: 65
A66: 66
A67: =A66+1 -> 67
A68: 68
A69: 69
A70: 70
A71: 71
A72: 72
A73: 73
A74: 74
A75: 75
A76: 76
A77: 77
A78: 78
A79: 79
A80: 80
A81: 81
A82: 82
A83: 83
A84: 84
A85: 85
A86: 86
A87: 87
A88: 88
A89: 89
A90: 90

Sheet Validation
A1: Type | B1: Supplies | C1: S/C share | D1: Payment Type | E1: Employee Type | F1: Schools | G1: Credit Flow | H1: Years | I1: Course Type
A2: Instructional | B2: Travel | C2: Net Revenue | D2: Fixed Rate | E2: Faculty / Academic Staff | F2: College of Agricultural and Life Sciences | G2: Constant | H2: 1 | I2: New
A3: Program Support | B3: Marketing | C3: Margin | D3: Per Credit | E3: RA / PA / TA | F3: Wisconsin School of Business | G3: Variable | H3: 2 | I3: Transition
A4: Program Marketing | B4: Meetings | E4: Unversity Staff | F4: School of Education | H4: 3 | I4: Maintenance
A5: Program Development - Startup (DCS / Campus) | B5: Conferences | F5: College of Engineering | H5: 4
A6: Program Development - Startup | B6: Supplies | F6: School of Human Ecology | H6: 5
B7: Other | F7: College of Letters & Science | H7: 6
F8: School of Nursing
F9: School of Pharmacy
F10: Law School
F11: School of Medicine and Public Health
F12: School of Veterinary Medicine
